Workbook

Sheet Introduction
B5: Dairy Margin Coverage
B6: Version 4.0
B7: Andrew P. Griffith | I7: Becky Bowling
B8: Associate Professor | I8: Extension Specialist I
B9: Email: agriff14@utk.edu | I9: Email: bowling10@utk.edu
E12: Jason Fewell
E13: Former Assistant Professor
B43: Programs in agriculture and natural resources, 4-H youth development, family and consumer sciences, and resource development.
B44: University of Tennessee Institute of Agriculture, U.S. Department of Agriculture and country governments cooperating.
B45: UT Extension provide equal opportunities in programs and employment.

Sheet 2022
B1: ****Users may type over the default values in the blue boxes****
B2: Dairy Margin Coverage Program
B3: Participation fee | C3: 100 | F3: Actual Dairy Production Margin Calculation
F4: 2022 | G4: January | H4: February | I4: March | J4: April | K4: May | L4: June | M4: July | N4: August | O4: September | P4: October | Q4: November | R4: December | T4: See comment
B5: Production history for the past three years: | F5: See comment | T5: http://usda.mannlib.cornell.edu/MannUsda/viewDocumentInfo.do;jsessionid=F154BA78C7C50C021C8CA924EDB72FD5?documentID=1002
B6: 2019 | D6: lbs | F6: All milk price ($/cwt) | G6: 24.2 | H6: 24.7 | I6: 25.9 | J6: 27.1
B7: 2020 | D7: lbs | F7: Average feed cost calculation: | T7: http://usda.mannlib.cornell.edu/MannUsda/viewDocumentInfo.do;jsessionid=F154BA78C7C50C021C8CA924EDB72FD5?documentID=1002
B8: 2021 | D8: lbs | F8: Monthly national avg price received for corn ($/bu) | G8: 5.57 | H8: 6.1 | I8: 6.56 | J8: 7.08 | T8: http://www.ams.usda.gov/mnreports/gx_gr117.txt
F9: Monthly avg price of central Ill. high protein soymeal ($/ton) | G9: 421.21 | H9: 480.96 | I9: 493.98 | J9: 476.7 | T9: http://usda.mannlib.cornell.edu/MannUsda/viewDocumentInfo.do;jsessionid=F154BA78C7C50C021C8CA924EDB72FD5?documentID=1002
B10: Maximum of last three years' production | C10: =MAX(C6:C8) -> 0 | D10: lbs | F10: Monthly national avg price received for alfalfa ($/ton) | G10: 262 | H10: 266 | I10: 269 | J10: 271
C11: =C10/100 -> 0 | D11: cwt | F11: All milk price | G11: =IFERROR((G6),"") -> 24.2 | H11: 24.7 | I11: 25.9 | J11: 27.1 | K11: 0 | L11: 0 | M11: 0 | N11: 0 | O11: 0 | P11: 0 | Q11: 0 | R11: 0
B13: Margin coverage level ($/cwt) up to 5,000,000 lbs. | C13: 9.5 | D13: /cwt | F13: Average feed cost calculation:
B14: Margin coverage level ($/cwt) over 5,000,000 lbs. | C14: 8 | D14: /cwt | F14: Cost for corn in $/cwt. | G14: =IFERROR((G8)*1.0728,"") -> 5.975496 | H14: 6.54408 | I14: 7.037568 | J14: 7.595424 | K14: 0 | L14: 0 | M14: 0 | N14: 0 | O14: 0 | P14: 0 | Q14: 0 | R14: 0
B15: Production coverage level (%) | C15: 95 | D15: % | F15: Cost for soymeal in $/cwt. | G15: =IFERROR((G9)*0.00735,"") -> 3.0958935 | H15: 3.535056 | I15: 3.630753 | J15: 3.503745 | K15: 0 | L15: 0 | M15: 0 | N15: 0 | O15: 0 | P15: 0 | Q15: 0 | R15: 0
F16: Cost for alfalfa in $/cwt. | G16: =IFERROR((G10)*0.0137,"") -> 3.5894 | H16: 3.6442 | I16: 3.6853 | J16: 3.7127 | K16: 0 | L16: 0 | M16: 0 | N16: 0 | O16: 0 | P16: 0 | Q16: 0 | R16: 0
B17: Locked coverage discount | D17: %
B18: Premiums for milk marketings up to 5,000,000 lbs. | C18: =VLOOKUP(C$13,C26:D37,2)*((100-C17)/100) -> 0.15 | D18: /cwt | F18: Average feed cost in $/cwt. | G18: =IFERROR(SUM(G14:G16),"") -> 12.6607895 | H18: 13.723336 | I18: 14.353621 | J18: 14.811869 | K18: 0 | L18: 0 | M18: 0 | N18: 0 | O18: 0 | P18: 0 | Q18: 0 | R18: 0
B19: Premiums for milk marketings over 5,000,000 lbs. | C19: =VLOOKUP(C$14,C40:D48,2)*((100-C17)/100) -> 1.813 | D19: /cwt
F20: Actual Dairy Production Margin | G20: =IFERROR(G11-G18,"") -> 11.5392105 | H20: 10.976664 | I20: 11.546379 | J20: 12.288131 | K20: 0 | L20: 0 | M20: 0 | N20: 0 | O20: 0 | P20: 0 | Q20: 0 | R20: 0
B21: Annual Premium cost to participate in DMC | C21: =IF(C10<5000001,C11*(C15/100)*C18,50000*(C15/100)*C18+(C11-50000)*(C15/100)*C19) -> 0
B22: Total annual cost to participate in DMC | C22: =C3+C21 -> 100
B25: For milk marketings up to 5,000,000 lbs. | C25: Coverage level | D25: Premium ($/cwt)
C26: 4 | D26: 0
C27: 4.5 | D27: 0.0025 | F27: Dairy Margin Coverage Payment Calculation
C28: 5 | D28: 0.005
C29: 5.5 | D29: 0.03 | F29: Margin coverage level ($/cwt) up to 5,000,000 lbs. | G29: =$C$13 -> 9.5 | H29: 9.5 | I29: 9.5 | J29: 9.5 | K29: 9.5 | L29: 9.5 | M29: 9.5 | N29: 9.5 | O29: 9.5 | P29: 9.5 | Q29: 9.5 | R29: 9.5
C30: 6 | D30: 0.05 | F30: Margin coverage level ($/cwt) over 5,000,000 lbs. | G30: =$C$14 -> 8 | H30: =$C$14 -> 8 | I30: 8 | J30: 8 | K30: 8 | L30: 8 | M30: 8 | N30: 8 | O30: 8 | P30: 8 | Q30: 8 | R30: 8
C31: 6.5 | D31: 0.07 | F31: Production coverage level (%) | G31: =$C$15 -> 95 | H31: 95 | I31: 95 | J31: 95 | K31: 95 | L31: 95 | M31: 95 | N31: 95 | O31: 95 | P31: 95 | Q31: 95 | R31: 95
C32: 7 | D32: 0.08
C33: 7.5 | D33: 0.09 | F33: Actual margin - Threshold margin up to 5,000,000 lbs. | G33: =IF(G20=0,0,IFERROR(G29-G20,"")) -> -2.0392105 | H33: -1.476664 | I33: -2.046379 | J33: -2.788131 | K33: 0 | L33: 0 | M33: 0 | N33: 0 | O33: 0 | P33: 0 | Q33: 0 | R33: 0
C34: 8 | D34: 0.1 | F34: Actual margin - Threshold margin over 5,000,000 lbs. | G34: =IF(G20=0,0,IFERROR(G30-G20,"")) -> -3.5392105 | H34: =IF(H20=0,0,IFERROR(H30-H20,"")) -> -2.976664 | I34: -3.546379 | J34: -4.288131 | K34: 0 | L34: 0 | M34: 0 | N34: 0 | O34: 0 | P34: 0 | Q34: 0 | R34: 0
C35: 8.5 | D35: 0.105
C36: 9 | D36: 0.11 | F36: Dairy Margin Coverage Payment | G36: =IFERROR(IF(AND(G33>0,$C$11<=50000),G33*(G31/100)*$C$11/12,IF(AND(G33>0,$C$11>50000),G33*(G31/100)*50000/12+IF(AND(G34>0,$C$11>50000),G34*(G31/100)*($C$11-50000)/12,0),0)),0) -> 0 | H36: =IFERROR(IF(AND(H33>0,$C$11<=50000),H33*(H31/100)*$C$11/12,IF(AND(H33>0,$C$11>50000),H33*(H31/100)*50000/12+IF(AND(H34>0,$C$11>50000),H34*(H31/100)*($C$11-50000)/12,0),0)),0) -> 0 | I36: 0 | J36: 0 | K36: 0 | L36: 0 | M36: 0 | N36: 0 | O36: 0 | P36: 0 | Q36: 0 | R36: 0
C37: 9.5 | D37: 0.15
F38: ****Note that the DMC payment value below is the annual payment.****
B39: For milk marketings over 5,000,000 lbs. | C39: Coverage level | D39: Premium ($/cwt) | F39: Annual Dairy Margin Coverage Payment
C40: 4 | D40: 0
C41: 4.5 | D41: 0.0025 | F41: January | G41: =IFERROR(G$36,0) -> 0
C42: 5 | D42: 0.005 | F42: February | G42: =IFERROR(H$36,0) -> 0
C43: 5.5 | D43: 0.1 | F43: March | G43: =IFERROR(I$36,0) -> 0
C44: 6 | D44: 0.31 | F44: April | G44: =IFERROR(J$36,0) -> 0
C45: 6.5 | D45: 0.65 | F45: May | G45: =IFERROR(K$36,0) -> 0
C46: 7 | D46: 1.107 | F46: June | G46: =IFERROR(L$36,0) -> 0
A47: =TODAY() -> 2022-06-06 | C47: 7.5 | D47: 1.413 | F47: July | G47: =IFERROR(M$36,0) -> 0
C48: 8 | D48: 1.813 | F48: August | G48: =IFERROR(N$36,0) -> 0
F49: September | G49: =IFERROR(O$36,0) -> 0
F50: October | G50: =IFERROR(P$36,0) -> 0
F51: November | G51: =IFERROR(Q$36,0) -> 0
F52: December | G52: =IFERROR(R$36,0) -> 0
F54: Total Annual Dairy Margin Payment | G54: =SUM(G41:G52) -> 0
F56: Cost to participate | G56: =C22 -> 100
F57: Annual return to participating in DMC | G57: =G54-G56 -> -100

Sheet 2021
B1: ****Users may type over the default values in the blue boxes****
B2: Dairy Margin Coverage Program
B3: Participation fee | C3: 100 | F3: Actual Dairy Production Margin Calculation
F4: 2021 | G4: January | H4: February | I4: March | J4: April | K4: May | L4: June | M4: July | N4: August | O4: September | P4: October | Q4: November | R4: December | T4: See comment
B5: Production history for the past three years: | F5: See comment | T5: http://usda.mannlib.cornell.edu/MannUsda/viewDocumentInfo.do;jsessionid=F154BA78C7C50C021C8CA924EDB72FD5?documentID=1002
B6: 2018 | D6: lbs | F6: All milk price ($/cwt) | G6: 17.5 | H6: 17.1 | I6: 17.4 | J6: 18.4 | K6: 19.2 | L6: 18.4 | M6: 17.9 | N6: 17.7 | O6: 18.4 | P6: 19.7 | Q6: 20.8 | R6: 21.8
B7: 2019 | D7: lbs | F7: Average feed cost calculation: | T7: http://usda.mannlib.cornell.edu/MannUsda/viewDocumentInfo.do;jsessionid=F154BA78C7C50C021C8CA924EDB72FD5?documentID=1002
B8: 2020 | D8: lbs | F8: Monthly national avg price received for corn ($/bu) | G8: 4.24 | H8: 4.75 | I8: 4.89 | J8: 5.31 | K8: 5.91 | L8: 6 | M8: 6.12 | N8: 6.32 | O8: 5.47 | P8: 5.02 | Q8: 5.27 | R8: 5.47 | T8: http://www.ams.usda.gov/mnreports/gx_gr117.txt
F9: Monthly avg price of central Ill. high protein soymeal ($/ton) | G9: 439.24 | H9: 427.28 | I9: 410.02 | J9: 413.36 | K9: 421.03 | L9: 378.18 | M9: 365.23 | N9: 358.21 | O9: 343.55 | P9: 325.43 | Q9: 358.73 | R9: 399.53 | T9: http://usda.mannlib.cornell.edu/MannUsda/viewDocumentInfo.do;jsessionid=F154BA78C7C50C021C8CA924EDB72FD5?documentID=1002
B10: Maximum of last three years' production | C10: =MAX(C6:C8) -> 0 | D10: lbs | F10: Monthly national avg price received for alfalfa ($/ton) | G10: 206 | H10: 211 | I10: 210 | J10: 211 | K10: 226 | L10: 230 | M10: 232 | N10: 238 | O10: 244 | P10: 247 | Q10: 246 | R10: 253
C11: =C10/100 -> 0 | D11: cwt | F11: All milk price | G11: =IFERROR((G6),"") -> 17.5 | H11: 17.1 | I11: 17.4 | J11: 18.4 | K11: 19.2 | L11: 18.4 | M11: 17.9 | N11: 17.7 | O11: 18.4 | P11: 19.7 | Q11: 20.8 | R11: 21.8
B13: Margin coverage level ($/cwt) up to 5,000,000 lbs. | C13: 9.5 | D13: /cwt | F13: Average feed cost calculation:
B14: Margin coverage level ($/cwt) over 5,000,000 lbs. | C14: 8 | D14: /cwt | F14: Cost for corn in $/cwt. | G14: =IFERROR((G8)*1.0728,"") -> 4.548672 | H14: 5.0958 | I14: 5.245992 | J14: 5.696568 | K14: 6.340248 | L14: 6.4368 | M14: 6.565536 | N14: 6.780096 | O14: 5.868216 | P14: 5.385456 | Q14: 5.653656 | R14: 5.868216
B15: Production coverage level (%) | C15: 95 | D15: % | F15: Cost for soymeal in $/cwt. | G15: =IFERROR((G9)*0.00735,"") -> 3.228414 | H15: 3.140508 | I15: 3.013647 | J15: 3.038196 | K15: 3.0945705 | L15: 2.779623 | M15: 2.6844405 | N15: 2.6328435 | O15: 2.5250925 | P15: 2.3919105 | Q15: 2.6366655 | R15: 2.9365455
F16: Cost for alfalfa in $/cwt. | G16: =IFERROR((G10)*0.0137,"") -> 2.8222 | H16: 2.8907 | I16: 2.877 | J16: 2.8907 | K16: 3.0962 | L16: 3.151 | M16: 3.1784 | N16: 3.2606 | O16: 3.3428 | P16: 3.3839 | Q16: 3.3702 | R16: 3.4661
B17: Locked coverage discount | D17: %
B18: Premiums for milk marketings up to 5,000,000 lbs. | C18: =VLOOKUP(C$13,C26:D37,2)*((100-C17)/100) -> 0.15 | D18: /cwt | F18: Average feed cost in $/cwt. | G18: =IFERROR(SUM(G14:G16),"") -> 10.599286 | H18: 11.127008 | I18: 11.136639 | J18: 11.625464 | K18: 12.5310185 | L18: 12.367423 | M18: 12.4283765 | N18: 12.6735395 | O18: 11.7361085 | P18: 11.1612665 | Q18: 11.6605215 | R18: 12.2708615
B19: Premiums for milk marketings over 5,000,000 lbs. | C19: =VLOOKUP(C$14,C40:D48,2)*((100-C17)/100) -> 1.813 | D19: /cwt
F20: Actual Dairy Production Margin | G20: =IFERROR(G11-G18,"") -> 6.900714 | H20: 5.972992 | I20: 6.263361 | J20: 6.774536 | K20: 6.6689815 | L20: 6.032577 | M20: 5.4716235 | N20: 5.0264605 | O20: 6.6638915 | P20: 8.5387335 | Q20: 9.1394785 | R20: 9.5291385
B21: Annual Premium cost to participate in DMC | C21: =IF(C10<5000001,C11*(C15/100)*C18,50000*(C15/100)*C18+(C11-50000)*(C15/100)*C19) -> 0
B22: Total annual cost to participate in DMC | C22: =C3+C21 -> 100
B25: For milk marketings up to 5,000,000 lbs. | C25: Coverage level | D25: Premium ($/cwt)
C26: 4 | D26: 0
C27: 4.5 | D27: 0.0025 | F27: Dairy Margin Coverage Payment Calculation
C28: 5 | D28: 0.005
C29: 5.5 | D29: 0.03 | F29: Margin coverage level ($/cwt) up to 5,000,000 lbs. | G29: =$C$13 -> 9.5 | H29: 9.5 | I29: 9.5 | J29: 9.5 | K29: 9.5 | L29: 9.5 | M29: 9.5 | N29: 9.5 | O29: 9.5 | P29: 9.5 | Q29: 9.5 | R29: 9.5
C30: 6 | D30: 0.05 | F30: Margin coverage level ($/cwt) over 5,000,000 lbs. | G30: =$C$14 -> 8 | H30: =$C$14 -> 8 | I30: 8 | J30: 8 | K30: 8 | L30: 8 | M30: 8 | N30: 8 | O30: 8 | P30: 8 | Q30: 8 | R30: 8
C31: 6.5 | D31: 0.07 | F31: Production coverage level (%) | G31: =$C$15 -> 95 | H31: 95 | I31: 95 | J31: 95 | K31: 95 | L31: 95 | M31: 95 | N31: 95 | O31: 95 | P31: 95 | Q31: 95 | R31: 95
C32: 7 | D32: 0.08
C33: 7.5 | D33: 0.09 | F33: Actual margin - Threshold margin up to 5,000,000 lbs. | G33: =IF(G20=0,0,IFERROR(G29-G20,"")) -> 2.599286 | H33: 3.527008 | I33: 3.236639 | J33: 2.725464 | K33: 2.8310185 | L33: 3.467423 | M33: 4.0283765 | N33: 4.4735395 | O33: 2.8361085 | P33: 0.9612665 | Q33: 0.3605215 | R33: -0.0291385
C34: 8 | D34: 0.1 | F34: Actual margin - Threshold margin over 5,000,000 lbs. | G34: =IF(G20=0,0,IFERROR(G30-G20,"")) -> 1.099286 | H34: =IF(H20=0,0,IFERROR(H30-H20,"")) -> 2.027008 | I34: 1.736639 | J34: 1.225464 | K34: 1.3310185 | L34: 1.967423 | M34: 2.5283765 | N34: 2.9735395 | O34: 1.3361085 | P34: -0.5387335 | Q34: -1.1394785 | R34: -1.5291385
C35: 8.5 | D35: 0.105
C36: 9 | D36: 0.11 | F36: Dairy Margin Coverage Payment | G36: =IFERROR(IF(AND(G33>0,$C$11<=50000),G33*(G31/100)*$C$11/12,IF(AND(G33>0,$C$11>50000),G33*(G31/100)*50000/12+IF(AND(G34>0,$C$11>50000),G34*(G31/100)*($C$11-50000)/12,0),0)),0) -> 0 | H36: =IFERROR(IF(AND(H33>0,$C$11<=50000),H33*(H31/100)*$C$11/12,IF(AND(H33>0,$C$11>50000),H33*(H31/100)*50000/12+IF(AND(H34>0,$C$11>50000),H34*(H31/100)*($C$11-50000)/12,0),0)),0) -> 0 | I36: 0 | J36: 0 | K36: 0 | L36: 0 | M36: 0 | N36: 0 | O36: 0 | P36: 0 | Q36: 0 | R36: 0
C37: 9.5 | D37: 0.15
F38: ****Note that the DMC payment value below is the annual payment.****
B39: For milk marketings over 5,000,000 lbs. | C39: Coverage level | D39: Premium ($/cwt) | F39: Annual Dairy Margin Coverage Payment
C40: 4 | D40: 0
C41: 4.5 | D41: 0.0025 | F41: January | G41: =IFERROR(G$36,0) -> 0
C42: 5 | D42: 0.005 | F42: February | G42: =IFERROR(H$36,0) -> 0
C43: 5.5 | D43: 0.1 | F43: March | G43: =IFERROR(I$36,0) -> 0
C44: 6 | D44: 0.31 | F44: April | G44: =IFERROR(J$36,0) -> 0
C45: 6.5 | D45: 0.65 | F45: May | G45: =IFERROR(K$36,0) -> 0
C46: 7 | D46: 1.107 | F46: June | G46: =IFERROR(L$36,0) -> 0
A47: =TODAY() -> 2022-06-06 | C47: 7.5 | D47: 1.413 | F47: July | G47: =IFERROR(M$36,0) -> 0
C48: 8 | D48: 1.813 | F48: August | G48: =IFERROR(N$36,0) -> 0
F49: September | G49: =IFERROR(O$36,0) -> 0
F50: October | G50: =IFERROR(P$36,0) -> 0
F51: November | G51: =IFERROR(Q$36,0) -> 0
F52: December | G52: =IFERROR(R$36,0) -> 0
F54: Total Annual Dairy Margin Payment | G54: =SUM(G41:G52) -> 0
F56: Cost to participate | G56: =C22 -> 100
F57: Annual return to participating in DMC | G57: =G54-G56 -> -100

Sheet 2020
B1: ****Users may type over the default values in the blue boxes****
B2: Dairy Margin Coverage Program
B3: Participation fee | C3: 100 | F3: Actual Dairy Production Margin Calculation
F4: 2020 | G4: January | H4: February | I4: March | J4: April | K4: May | L4: June | M4: July | N4: August | O4: September | P4: October | Q4: November | R4: December | T4: See comment
B5: Production history for the past three years: | F5: See comment | T5: http://usda.mannlib.cornell.edu/MannUsda/viewDocumentInfo.do;jsessionid=F154BA78C7C50C021C8CA924EDB72FD5?documentID=1002
B6: 2017 | D6: lbs | F6: All milk price ($/cwt) | G6: 19.6 | H6: 18.9 | I6: 18 | J6: 14.4 | K6: 13.6 | L6: 18.1 | M6: 20.5 | N6: 18.8 | O6: 17.9 | P6: 20.2 | Q6: 21.3 | R6: 18.5
B7: 2018 | D7: lbs | F7: Average feed cost calculation: | T7: http://usda.mannlib.cornell.edu/MannUsda/viewDocumentInfo.do;jsessionid=F154BA78C7C50C021C8CA924EDB72FD5?documentID=1002
B8: 2019 | D8: lbs | F8: Monthly national avg price received for corn ($/bu) | G8: 3.79 | H8: 3.78 | I8: 3.68 | J8: 3.29 | K8: 3.2 | L8: 3.16 | M8: 3.21 | N8: 3.12 | O8: 3.41 | P8: 3.61 | Q8: 3.79 | R8: 3.97 | T8: http://www.ams.usda.gov/mnreports/gx_gr117.txt
F9: Monthly avg price of central Ill. high protein soymeal ($/ton) | G9: 300.11 | H9: 295.28 | I9: 312.38 | J9: 295.39 | K9: 288.56 | L9: 288.66 | M9: 291.25 | N9: 290.18 | O9: 319.99 | P9: 367.11 | Q9: 387.83 | R9: 396.68 | T9: http://usda.mannlib.cornell.edu/MannUsda/viewDocumentInfo.do;jsessionid=F154BA78C7C50C021C8CA924EDB72FD5?documentID=1002
B10: Maximum of last three years' production | C10: =MAX(C6:C8) -> 0 | D10: lbs | F10: Monthly national avg price received for alfalfa ($/ton) | G10: 210 | H10: 210 | I10: 205 | J10: 209 | K10: 211 | L10: 201 | M10: 192 | N10: 192 | O10: 192 | P10: 194 | Q10: 200 | R10: 203
C11: =C10/100 -> 0 | D11: cwt | F11: All milk price | G11: =IFERROR((G6),"") -> 19.6 | H11: 18.9 | I11: 18 | J11: 14.4 | K11: 13.6 | L11: 18.1 | M11: 20.5 | N11: 18.8 | O11: 17.9 | P11: 20.2 | Q11: 21.3 | R11: 18.5
B13: Margin coverage level ($/cwt) up to 5,000,000 lbs. | C13: 9.5 | D13: /cwt | F13: Average feed cost calculation:
B14: Margin coverage level ($/cwt) over 5,000,000 lbs. | C14: 7 | D14: /cwt | F14: Cost for corn in $/cwt. | G14: =IFERROR((G8)*1.0728,"") -> 4.065912 | H14: 4.055184 | I14: 3.947904 | J14: 3.529512 | K14: 3.43296 | L14: 3.390048 | M14: 3.443688 | N14: 3.347136 | O14: 3.658248 | P14: 3.872808 | Q14: 4.065912 | R14: 4.259016
B15: Production coverage level (%) | C15: 95 | D15: % | F15: Cost for soymeal in $/cwt. | G15: =IFERROR((G9)*0.00735,"") -> 2.2058085 | H15: 2.170308 | I15: 2.295993 | J15: 2.1711165 | K15: 2.120916 | L15: 2.121651 | M15: 2.1406875 | N15: 2.132823 | O15: 2.3519265 | P15: 2.6982585 | Q15: 2.8505505 | R15: 2.915598
F16: Cost for alfalfa in $/cwt. | G16: =IFERROR((G10)*0.0137,"") -> 2.877 | H16: 2.877 | I16: 2.8085 | J16: 2.8633 | K16: 2.8907 | L16: 2.7537 | M16: 2.6304 | N16: 2.6304 | O16: 2.6304 | P16: 2.6578 | Q16: 2.74 | R16: 2.7811
B17: Locked coverage discount | D17: %
B18: Premiums for milk marketings up to 5,000,000 lbs. | C18: =VLOOKUP(C$13,C26:D37,2)*((100-C17)/100) -> 0.15 | D18: /cwt | F18: Average feed cost in $/cwt. | G18: =IFERROR(SUM(G14:G16),"") -> 9.1487205 | H18: 9.102492 | I18: 9.052397 | J18: 8.5639285 | K18: 8.444576 | L18: 8.265399 | M18: 8.2147755 | N18: 8.110359 | O18: 8.6405745 | P18: 9.2288665 | Q18: 9.6564625 | R18: 9.955714
B19: Premiums for milk marketings over 5,000,000 lbs. | C19: =VLOOKUP(C$14,C40:D48,2)*((100-C17)/100) -> 1.107 | D19: /cwt
F20: Actual Dairy Production Margin | G20: =IFERROR(G11-G18,"") -> 10.4512795 | H20: 9.797508 | I20: 8.947603 | J20: 5.8360715 | K20: 5.155424 | L20: 9.834601 | M20: 12.2852245 | N20: 10.689641 | O20: 9.2594255 | P20: 10.9711335 | Q20: 11.6435375 | R20: 8.544286
B21: Annual Premium cost to participate in DMC | C21: =IF(C10<5000001,C11*(C15/100)*C18,50000*(C15/100)*C18+(C11-50000)*(C15/100)*C19) -> 0
B22: Total annual cost to participate in DMC | C22: =C3+C21 -> 100
B25: For milk marketings up to 5,000,000 lbs. | C25: Coverage level | D25: Premium ($/cwt)
C26: 4 | D26: 0
C27: 4.5 | D27: 0.0025 | F27: Dairy Margin Coverage Payment Calculation
C28: 5 | D28: 0.005
C29: 5.5 | D29: 0.03 | F29: Margin coverage level ($/cwt) up to 5,000,000 lbs. | G29: =$C$13 -> 9.5 | H29: 9.5 | I29: 9.5 | J29: 9.5 | K29: 9.5 | L29: 9.5 | M29: 9.5 | N29: 9.5 | O29: 9.5 | P29: 9.5 | Q29: 9.5 | R29: 9.5
C30: 6 | D30: 0.05 | F30: Margin coverage level ($/cwt) over 5,000,000 lbs. | G30: =$C$14 -> 7 | H30: =$C$14 -> 7 | I30: 7 | J30: 7 | K30: 7 | L30: 7 | M30: 7 | N30: 7 | O30: 7 | P30: 7 | Q30: 7 | R30: 7
C31: 6.5 | D31: 0.07 | F31: Production coverage level (%) | G31: =$C$15 -> 95 | H31: 95 | I31: 95 | J31: 95 | K31: 95 | L31: 95 | M31: 95 | N31: 95 | O31: 95 | P31: 95 | Q31: 95 | R31: 95
C32: 7 | D32: 0.08
C33: 7.5 | D33: 0.09 | F33: Actual margin - Threshold margin up to 5,000,000 lbs. | G33: =IF(G20=0,0,IFERROR(G29-G20,"")) -> -0.9512795 | H33: -0.297508 | I33: 0.552397 | J33: 3.6639285 | K33: 4.344576 | L33: -0.334601 | M33: -2.7852245 | N33: -1.189641 | O33: 0.2405745 | P33: -1.4711335 | Q33: -2.1435375 | R33: 0.955714
C34: 8 | D34: 0.1 | F34: Actual margin - Threshold margin over 5,000,000 lbs. | G34: =IF(G20=0,0,IFERROR(G30-G20,"")) -> -3.4512795 | H34: =IF(H20=0,0,IFERROR(H30-H20,"")) -> -2.797508 | I34: -1.947603 | J34: 1.1639285 | K34: 1.844576 | L34: -2.834601 | M34: -5.2852245 | N34: -3.689641 | O34: -2.2594255 | P34: -3.9711335 | Q34: -4.6435375 | R34: -1.544286
C35: 8.5 | D35: 0.105
C36: 9 | D36: 0.11 | F36: Dairy Margin Coverage Payment | G36: =IFERROR(IF(AND(G33>0,$C$11<=50000),G33*(G31/100)*$C$11/12,IF(AND(G33>0,$C$11>50000),G33*(G31/100)*50000/12+IF(AND(G34>0,$C$11>50000),G34*(G31/100)*($C$11-50000)/12,0),0)),0) -> 0 | H36: =IFERROR(IF(AND(H33>0,$C$11<=50000),H33*(H31/100)*$C$11/12,IF(AND(H33>0,$C$11>50000),H33*(H31/100)*50000/12+IF(AND(H34>0,$C$11>50000),H34*(H31/100)*($C$11-50000)/12,0),0)),0) -> 0 | I36: 0 | J36: 0 | K36: 0 | L36: 0 | M36: 0 | N36: 0 | O36: 0 | P36: 0 | Q36: 0 | R36: 0
C37: 9.5 | D37: 0.15
F38: ****Note that the DMC payment value below is the annual payment.****
B39: For milk marketings over 5,000,000 lbs. | C39: Coverage level | D39: Premium ($/cwt) | F39: Annual Dairy Margin Coverage Payment
C40: 4 | D40: 0
C41: 4.5 | D41: 0.0025 | F41: January | G41: =IFERROR(G$36,0) -> 0
C42: 5 | D42: 0.005 | F42: February | G42: =IFERROR(H$36,0) -> 0
C43: 5.5 | D43: 0.1 | F43: March | G43: =IFERROR(I$36,0) -> 0
C44: 6 | D44: 0.31 | F44: April | G44: =IFERROR(J$36,0) -> 0
C45: 6.5 | D45: 0.65 | F45: May | G45: =IFERROR(K$36,0) -> 0
C46: 7 | D46: 1.107 | F46: June | G46: =IFERROR(L$36,0) -> 0
A47: =TODAY() -> 2022-06-06 | C47: 7.5 | D47: 1.413 | F47: July | G47: =IFERROR(M$36,0) -> 0
C48: 8 | D48: 1.813 | F48: August | G48: =IFERROR(N$36,0) -> 0
F49: September | G49: =IFERROR(O$36,0) -> 0
F50: October | G50: =IFERROR(P$36,0) -> 0
F51: November | G51: =IFERROR(Q$36,0) -> 0
F52: December | G52: =IFERROR(R$36,0) -> 0
F54: Total Annual Dairy Margin Payment | G54: =SUM(G41:G52) -> 0
F56: Cost to participate | G56: =C22 -> 100
F57: Annual return to participating in DMC | G57: =G54-G56 -> -100

Sheet 2019
B1: ****Users may type over the default values in the blue boxes****
B2: Dairy Margin Coverage Program
B3: Participation fee | C3: 100 | F3: Actual Dairy Production Margin Calculation
F4: 2019 | G4: January | H4: February | I4: March | J4: April | K4: May | L4: June | M4: July | N4: August | O4: September | P4: October | Q4: November | R4: December | T4: See comment
B5: Production history for the past three years: | F5: See comment | T5: http://usda.mannlib.cornell.edu/MannUsda/viewDocumentInfo.do;jsessionid=F154BA78C7C50C021C8CA924EDB72FD5?documentID=1002
B6: 2016 | D6: lbs | F6: All milk price ($/cwt) | G6: 16.6 | H6: 16.8 | I6: 17.5 | J6: 17.7 | K6: 18 | L6: 18.1 | M6: 18.7 | N6: 18.9 | O6: 19.3 | P6: 19.9 | Q6: 21 | R6: 20.7
B7: 2017 | D7: lbs | F7: Average feed cost calculation: | T7: http://usda.mannlib.cornell.edu/MannUsda/viewDocumentInfo.do;jsessionid=F154BA78C7C50C021C8CA924EDB72FD5?documentID=1002
B8: 2018 | D8: lbs | F8: Monthly national avg price received for corn ($/bu) | G8: 3.56 | H8: 3.6 | I8: 3.61 | J8: 3.52 | K8: 3.63 | L8: 3.98 | M8: 4.16 | N8: 3.93 | O8: 3.8 | P8: 3.84 | Q8: 3.68 | R8: 3.71 | T8: http://www.ams.usda.gov/mnreports/gx_gr117.txt
F9: Monthly avg price of central Ill. high protein soymeal ($/ton) | G9: 314.92 | H9: 306.83 | I9: 306.38 | J9: 304.26 | K9: 297.52 | L9: 324.75 | M9: 310.77 | N9: 296.42 | O9: 295.57 | P9: 309.48 | Q9: 303.13 | R9: 299.59 | T9: http://usda.mannlib.cornell.edu/MannUsda/viewDocumentInfo.do;jsessionid=F154BA78C7C50C021C8CA924EDB72FD5?documentID=1002
B10: Maximum of last three years' production | C10: =MAX(C6:C8) -> 0 | D10: lbs | F10: Monthly national avg price received for alfalfa ($/ton) | G10: 201 | H10: 202.5 | I10: 198.5 | J10: 209 | K10: 213 | L10: 205 | M10: 196 | N10: 193.5 | O10: 192.5 | P10: 192 | Q10: 191 | R10: 187.5
C11: =C10/100 -> 0 | D11: cwt | F11: All milk price | G11: =IFERROR((G6),"") -> 16.6 | H11: 16.8 | I11: 17.5 | J11: 17.7 | K11: 18 | L11: 18.1 | M11: 18.7 | N11: 18.9 | O11: 19.3 | P11: 19.9 | Q11: 21 | R11: 20.7
B13: Margin coverage level ($/cwt) up to 5,000,000 lbs. | C13: 9.5 | D13: /cwt | F13: Average feed cost calculation:
B14: Margin coverage level ($/cwt) over 5,000,000 lbs. | C14: 7 | D14: /cwt | F14: Cost for corn in $/cwt. | G14: =IFERROR((G8)*1.0728,"") -> 3.819168 | H14: 3.86208 | I14: 3.872808 | J14: 3.776256 | K14: 3.894264 | L14: 4.269744 | M14: 4.462848 | N14: 4.216104 | O14: 4.07664 | P14: 4.119552 | Q14: 3.947904 | R14: 3.980088
B15: Production coverage level (%) | C15: 95 | D15: % | F15: Cost for soymeal in $/cwt. | G15: =IFERROR((G9)*0.00735,"") -> 2.314662 | H15: 2.2552005 | I15: 2.251893 | J15: 2.236311 | K15: 2.186772 | L15: 2.3869125 | M15: 2.2841595 | N15: 2.178687 | O15: 2.1724395 | P15: 2.274678 | Q15: 2.2280055 | R15: 2.2019865
F16: Cost for alfalfa in $/cwt. | G16: =IFERROR((G10)*0.0137,"") -> 2.7537 | H16: 2.77425 | I16: 2.71945 | J16: 2.8633 | K16: 2.9181 | L16: 2.8085 | M16: 2.6852 | N16: 2.65095 | O16: 2.63725 | P16: 2.6304 | Q16: 2.6167 | R16: 2.56875
B17: Locked coverage discount | D17: %
B18: Premiums for milk marketings up to 5,000,000 lbs. | C18: =VLOOKUP(C$13,C26:D37,2)*((100-C17)/100) -> 0.15 | D18: /cwt | F18: Average feed cost in $/cwt. | G18: =IFERROR(SUM(G14:G16),"") -> 8.88753 | H18: 8.8915305 | I18: 8.844151 | J18: 8.875867 | K18: 8.999136 | L18: 9.4651565 | M18: 9.4322075 | N18: 9.045741 | O18: 8.8863295 | P18: 9.02463 | Q18: 8.7926095 | R18: 8.7508245
B19: Premiums for milk marketings over 5,000,000 lbs. | C19: =VLOOKUP(C$14,C40:D48,2)*((100-C17)/100) -> 1.107 | D19: /cwt
F20: Actual Dairy Production Margin | G20: =IFERROR(G11-G18,"") -> 7.71247 | H20: 7.9084695 | I20: 8.655849 | J20: 8.824133 | K20: 9.000864 | L20: 8.6348435 | M20: 9.2677925 | N20: 9.854259 | O20: 10.4136705 | P20: 10.87537 | Q20: 12.2073905 | R20: 11.9491755
B21: Annual Premium cost to participate in DMC | C21: =IF(C10<5000001,C11*(C15/100)*C18,50000*(C15/100)*C18+(C11-50000)*(C15/100)*C19) -> 0
B22: Total annual cost to participate in DMC | C22: =C3+C21 -> 100
B25: For milk marketings up to 5,000,000 lbs. | C25: Coverage level | D25: Premium ($/cwt)
C26: 4 | D26: 0
C27: 4.5 | D27: 0.0025 | F27: Dairy Margin Coverage Payment Calculation
C28: 5 | D28: 0.005
C29: 5.5 | D29: 0.03 | F29: Margin coverage level ($/cwt) up to 5,000,000 lbs. | G29: =$C$13 -> 9.5 | H29: 9.5 | I29: 9.5 | J29: 9.5 | K29: 9.5 | L29: 9.5 | M29: 9.5 | N29: 9.5 | O29: 9.5 | P29: 9.5 | Q29: 9.5 | R29: 9.5
C30: 6 | D30: 0.05 | F30: Margin coverage level ($/cwt) over 5,000,000 lbs. | G30: =$C$14 -> 7 | H30: =$C$14 -> 7 | I30: 7 | J30: 7 | K30: 7 | L30: 7 | M30: 7 | N30: 7 | O30: 7 | P30: 7 | Q30: 7 | R30: 7
C31: 6.5 | D31: 0.07 | F31: Production coverage level (%) | G31: =$C$15 -> 95 | H31: 95 | I31: 95 | J31: 95 | K31: 95 | L31: 95 | M31: 95 | N31: 95 | O31: 95 | P31: 95 | Q31: 95 | R31: 95
C32: 7 | D32: 0.08
C33: 7.5 | D33: 0.09 | F33: Actual margin - Threshold margin up to 5,000,000 lbs. | G33: =IF(G20=0,0,IFERROR(G29-G20,"")) -> 1.78753 | H33: 1.5915305 | I33: 0.844151 | J33: 0.675867 | K33: 0.499136 | L33: 0.8651565 | M33: 0.2322075 | N33: -0.354259 | O33: -0.9136705 | P33: -1.37537 | Q33: -2.7073905 | R33: -2.4491755
C34: 8 | D34: 0.1 | F34: Actual margin - Threshold margin over 5,000,000 lbs. | G34: =IF(G20=0,0,IFERROR(G30-G20,"")) -> -0.71247 | H34: =IF(H20=0,0,IFERROR(H30-H20,"")) -> -0.9084695 | I34: -1.655849 | J34: -1.824133 | K34: -2.000864 | L34: -1.6348435 | M34: -2.2677925 | N34: -2.854259 | O34: -3.4136705 | P34: -3.87537 | Q34: -5.2073905 | R34: -4.9491755
C35: 8.5 | D35: 0.105
C36: 9 | D36: 0.11 | F36: Dairy Margin Coverage Payment | G36: =IFERROR(IF(AND(G33>0,$C$11<=50000),G33*(G31/100)*$C$11/12,IF(AND(G33>0,$C$11>50000),G33*(G31/100)*50000/12+IF(AND(G34>0,$C$11>50000),G34*(G31/100)*($C$11-50000)/12,0),0)),0) -> 0 | H36: =IFERROR(IF(AND(H33>0,$C$11<=50000),H33*(H31/100)*$C$11/12,IF(AND(H33>0,$C$11>50000),H33*(H31/100)*50000/12+IF(AND(H34>0,$C$11>50000),H34*(H31/100)*($C$11-50000)/12,0),0)),0) -> 0 | I36: 0 | J36: 0 | K36: 0 | L36: 0 | M36: 0 | N36: 0 | O36: 0 | P36: 0 | Q36: 0 | R36: 0
C37: 9.5 | D37: 0.15
F38: ****Note that the DMC payment value below is the annual payment.****
B39: For milk marketings over 5,000,000 lbs. | C39: Coverage level | D39: Premium ($/cwt) | F39: Annual Dairy Margin Coverage Payment
C40: 4 | D40: 0
C41: 4.5 | D41: 0.0025 | F41: January | G41: =IFERROR(G$36,0) -> 0
C42: 5 | D42: 0.005 | F42: February | G42: =IFERROR(H$36,0) -> 0
C43: 5.5 | D43: 0.1 | F43: March | G43: =IFERROR(I$36,0) -> 0
C44: 6 | D44: 0.31 | F44: April | G44: =IFERROR(J$36,0) -> 0
C45: 6.5 | D45: 0.65 | F45: May | G45: =IFERROR(K$36,0) -> 0
C46: 7 | D46: 1.107 | F46: June | G46: =IFERROR(L$36,0) -> 0
A47: =TODAY() -> 2022-06-06 | C47: 7.5 | D47: 1.413 | F47: July | G47: =IFERROR(M$36,0) -> 0
C48: 8 | D48: 1.813 | F48: August | G48: =IFERROR(N$36,0) -> 0
F49: September | G49: =IFERROR(O$36,0) -> 0
F50: October | G50: =IFERROR(P$36,0) -> 0
F51: November | G51: =IFERROR(Q$36,0) -> 0
F52: December | G52: =IFERROR(R$36,0) -> 0
F54: Total Annual Dairy Margin Payment | G54: =SUM(G41:G52) -> 0
F56: Cost to participate | G56: =C22 -> 100
F57: Annual return to participating in DMC | G57: =G54-G56 -> -100

Sheet 2018
B1: ****Users may type over the default values in the blue boxes****
B2: Dairy Margin Protection Program
B3: Participation fee | C3: 100 | F3: Actual Dairy Production Margin Calculation
F4: 2018 | G4: January | H4: February | I4: March | J4: April | K4: May | L4: June | M4: July | N4: August | O4: September | P4: October | Q4: November | R4: December | T4: See comment
B5: Production history for the past three years: | F5: See comment | T5: http://usda.mannlib.cornell.edu/MannUsda/viewDocumentInfo.do;jsessionid=F154BA78C7C50C021C8CA924EDB72FD5?documentID=1002
B6: 2015 | D6: lbs | F6: All milk price ($/cwt) | G6: 16.1 | H6: 15.3 | I6: 15.6 | J6: 15.8 | K6: 16.2 | L6: 16.3 | M6: 15.4 | N6: 15.9 | O6: 16.7 | P6: 17.4 | Q6: 17 | R6: 16.4
B7: 2016 | D7: lbs | F7: Average feed cost calculation: | T7: http://usda.mannlib.cornell.edu/MannUsda/viewDocumentInfo.do;jsessionid=F154BA78C7C50C021C8CA924EDB72FD5?documentID=1002
B8: 2017 | D8: lbs | F8: Monthly national avg price received for corn ($/bu) | G8: 3.29 | H8: 3.38 | I8: 3.51 | J8: 3.58 | K8: 3.67 | L8: 3.58 | M8: 3.47 | N8: 3.36 | O8: 3.39 | P8: 3.41 | Q8: 3.41 | R8: 3.54 | T8: http://www.ams.usda.gov/mnreports/gx_gr117.txt
F9: Monthly avg price of central Ill. high protein soymeal ($/ton) | G9: 322.59 | H9: 362.85 | I9: 379.85 | J9: 385.84 | K9: 393.55 | L9: 355.71 | M9: 341.08 | N9: 332.5 | O9: 318.32 | P9: 319.15 | Q9: 310.62 | R9: 311.7 | T9: http://usda.mannlib.cornell.edu/MannUsda/viewDocumentInfo.do;jsessionid=F154BA78C7C50C021C8CA924EDB72FD5?documentID=1002
B10: Maximum of last three years' production | C10: =MAX(C6:C8) -> 0 | D10: lbs | F10: Monthly national avg price received for alfalfa ($/ton) | G10: 152 | H10: 155 | I10: 166 | J10: 183 | K10: 189 | L10: 181 | M10: 179 | N10: 177 | O10: 180 | P10: 178 | Q10: 175 | R10: 180
C11: =C10/100 -> 0 | D11: cwt | F11: All milk price | G11: =IFERROR((G6),"") -> 16.1 | H11: 15.3 | I11: 15.6 | J11: 15.8 | K11: 16.2 | L11: 16.3 | M11: 15.4 | N11: 15.9 | O11: 16.7 | P11: 17.4 | Q11: 17 | R11: 16.4
B13: Margin coverage level ($/cwt) up to 5,000,000 lbs. | C13: 9.5 | D13: /cwt | F13: Average feed cost calculation:
B14: Margin coverage level ($/cwt) over 5,000,000 lbs. | C14: 7 | D14: /cwt | F14: Cost for corn in $/cwt. | G14: =IFERROR((G8)*1.0728,"") -> 3.529512 | H14: 3.626064 | I14: 3.765528 | J14: 3.840624 | K14: 3.937176 | L14: 3.840624 | M14: 3.722616 | N14: 3.604608 | O14: 3.636792 | P14: 3.658248 | Q14: 3.658248 | R14: 3.797712
B15: Production coverage level (%) | C15: 95 | D15: % | F15: Cost for soymeal in $/cwt. | G15: =IFERROR((G9)*0.00735,"") -> 2.3710365 | H15: 2.6669475 | I15: 2.7918975 | J15: 2.835924 | K15: 2.8925925 | L15: 2.6144685 | M15: 2.506938 | N15: 2.443875 | O15: 2.339652 | P15: 2.3457525 | Q15: 2.283057 | R15: 2.290995
F16: Cost for alfalfa in $/cwt. | G16: =IFERROR((G10)*0.0137,"") -> 2.0824 | H16: 2.1235 | I16: 2.2742 | J16: 2.5071 | K16: 2.5893 | L16: 2.4797 | M16: 2.4523 | N16: 2.4249 | O16: 2.466 | P16: 2.4386 | Q16: 2.3975 | R16: 2.466
B17: Locked coverage discount | D17: %
B18: Premiums for milk marketings up to 5,000,000 lbs. | C18: =VLOOKUP(C$13,C26:D37,2)*((100-C17)/100) -> 0.15 | D18: /cwt | F18: Average feed cost in $/cwt. | G18: =IFERROR(SUM(G14:G16),"") -> 7.9829485 | H18: 8.4165115 | I18: 8.8316255 | J18: 9.183648 | K18: 9.4190685 | L18: 8.9347925 | M18: 8.681854 | N18: 8.473383 | O18: 8.442444 | P18: 8.4426005 | Q18: 8.338805 | R18: 8.554707
B19: Premiums for milk marketings over 5,000,000 lbs. | C19: =VLOOKUP(C$14,C40:D48,2)*((100-C17)/100) -> 1.107 | D19: /cwt
F20: Actual Dairy Production Margin | G20: =IFERROR(G11-G18,"") -> 8.1170515 | H20: 6.8834885 | I20: 6.7683745 | J20: 6.616352 | K20: 6.7809315 | L20: 7.3652075 | M20: 6.718146 | N20: 7.426617 | O20: 8.257556 | P20: 8.9573995 | Q20: 8.661195 | R20: 7.845293
B21: Annual Premium cost to participate in MPP | C21: =IF(C10<5000001,C11*(C15/100)*C18,50000*(C15/100)*C18+(C11-50000)*(C15/100)*C19) -> 0
B22: Total annual cost to participate in MPP | C22: =C3+C21 -> 100
B25: For milk marketings up to 5,000,000 lbs. | C25: Coverage level | D25: Premium ($/cwt)
C26: 4 | D26: 0
C27: 4.5 | D27: 0.0025 | F27: Dairy Margin Coverage Payment Calculation
C28: 5 | D28: 0.005
C29: 5.5 | D29: 0.03 | F29: Margin coverage level ($/cwt) up to 5,000,000 lbs. | G29: =$C$13 -> 9.5 | H29: 9.5 | I29: 9.5 | J29: 9.5 | K29: 9.5 | L29: 9.5 | M29: 9.5 | N29: 9.5 | O29: 9.5 | P29: 9.5 | Q29: 9.5 | R29: 9.5
C30: 6 | D30: 0.05 | F30: Margin coverage level ($/cwt) over 5,000,000 lbs. | G30: =$C$14 -> 7 | H30: =$C$14 -> 7 | I30: 7 | J30: 7 | K30: 7 | L30: 7 | M30: 7 | N30: 7 | O30: 7 | P30: 7 | Q30: 7 | R30: 7
C31: 6.5 | D31: 0.07 | F31: Production coverage level (%) | G31: =$C$15 -> 95 | H31: 95 | I31: 95 | J31: 95 | K31: 95 | L31: 95 | M31: 95 | N31: 95 | O31: 95 | P31: 95 | Q31: 95 | R31: 95
C32: 7 | D32: 0.08
C33: 7.5 | D33: 0.09 | F33: Actual margin - Threshold margin up to 5,000,000 lbs. | G33: =IF(G20=0,0,IFERROR(G29-G20,"")) -> 1.3829485 | H33: 2.6165115 | I33: 2.7316255 | J33: 2.883648 | K33: 2.7190685 | L33: 2.1347925 | M33: 2.781854 | N33: 2.073383 | O33: 1.242444 | P33: 0.5426005 | Q33: 0.838805 | R33: 1.654707
C34: 8 | D34: 0.1 | F34: Actual margin - Threshold margin over 5,000,000 lbs. | G34: =IF(G20=0,0,IFERROR(G30-G20,"")) -> -1.1170515 | H34: =IF(H20=0,0,IFERROR(H30-H20,"")) -> 0.1165115 | I34: 0.2316255 | J34: 0.383648 | K34: 0.2190685 | L34: -0.3652075 | M34: 0.281854 | N34: -0.426617 | O34: -1.257556 | P34: -1.9573995 | Q34: -1.661195 | R34: -0.845293
C35: 8.5 | D35: 0.105
C36: 9 | D36: 0.11 | F36: Dairy Margin Coverage Payment | G36: =IFERROR(IF(AND(G33>0,$C$11<=50000),G33*(G31/100)*$C$11/12,IF(AND(G33>0,$C$11>50000),G33*(G31/100)*50000/12+IF(AND(G34>0,$C$11>50000),G34*(G31/100)*($C$11-50000)/12,0),0)),0) -> 0 | H36: =IFERROR(IF(AND(H33>0,$C$11<=50000),H33*(H31/100)*$C$11/12,IF(AND(H33>0,$C$11>50000),H33*(H31/100)*50000/12+IF(AND(H34>0,$C$11>50000),H34*(H31/100)*($C$11-50000)/12,0),0)),0) -> 0 | I36: 0 | J36: 0 | K36: 0 | L36: 0 | M36: 0 | N36: 0 | O36: 0 | P36: 0 | Q36: 0 | R36: 0
C37: 9.5 | D37: 0.15
F38: ****Note that the DMC payment value below is the annual payment.****
B39: For milk marketings over 5,000,000 lbs. | C39: Coverage level | D39: Premium ($/cwt) | F39: Annual Dairy Margin Coverage Payment
C40: 4 | D40: 0
C41: 4.5 | D41: 0.0025 | F41: January | G41: =IFERROR(G$36,0) -> 0
C42: 5 | D42: 0.005 | F42: February | G42: =IFERROR(H$36,0) -> 0
C43: 5.5 | D43: 0.1 | F43: March | G43: =IFERROR(I$36,0) -> 0
C44: 6 | D44: 0.31 | F44: April | G44: =IFERROR(J$36,0) -> 0
C45: 6.5 | D45: 0.65 | F45: May | G45: =IFERROR(K$36,0) -> 0
C46: 7 | D46: 1.107 | F46: June | G46: =IFERROR(L$36,0) -> 0
A47: =TODAY() -> 2022-06-06 | C47: 7.5 | D47: 1.413 | F47: July | G47: =IFERROR(M$36,0) -> 0
C48: 8 | D48: 1.813 | F48: August | G48: =IFERROR(N$36,0) -> 0
F49: September | G49: =IFERROR(O$36,0) -> 0
F50: October | G50: =IFERROR(P$36,0) -> 0
F51: November | G51: =IFERROR(Q$36,0) -> 0
F52: December | G52: =IFERROR(R$36,0) -> 0
F54: Total Annual Margin Protection Payment | G54: =SUM(G41:G52) -> 0
F56: Cost to participate | G56: =C22 -> 100
F57: Annual return to participating in MPP | G57: =G54-G56 -> -100

Sheet 2017 (hidden)
B1: ****Users may type over the default values in the blue boxes****
B2: Dairy Margin Protection Program
B3: Participation fee | C3: 100 | F3: Actual Dairy Production Margin Calculation
F4: 2017 | G4: January | H4: February | I4: March | J4: April | K4: May | L4: June | M4: July | N4: August | O4: September | P4: October | Q4: November | R4: December | T4: See comment
B5: Production history for the past three years: | F5: See comment | T5: http://usda.mannlib.cornell.edu/MannUsda/viewDocumentInfo.do;jsessionid=F154BA78C7C50C021C8CA924EDB72FD5?documentID=1002
B6: 2014 | C6: 10000000 | D6: lbs | F6: All milk price ($/cwt) | G6: 18.9 | H6: 18.5 | I6: 17.3 | J6: 16.5 | K6: 16.7 | L6: 17.3 | M6: 17.3 | N6: 18 | O6: 17.8 | P6: 17.9 | Q6: 18.1 | R6: 17.2
B7: 2015 | C7: 10500000 | D7: lbs | F7: Average feed cost calculation: | T7: http://usda.mannlib.cornell.edu/MannUsda/viewDocumentInfo.do;jsessionid=F154BA78C7C50C021C8CA924EDB72FD5?documentID=1002
B8: 2016 | C8: 11000000 | D8: lbs | F8: Monthly national avg price received for corn ($/bu) | G8: 3.4 | H8: 3.44 | I8: 3.49 | J8: 3.43 | K8: 3.45 | L8: 3.43 | M8: 3.49 | N8: 3.27 | O8: 3.27 | P8: 3.26 | Q8: 3.15 | R8: 3.23 | T8: http://www.ams.usda.gov/mnreports/gx_gr117.txt
F9: Monthly avg price of central Ill. high protein soymeal ($/ton) | G9: 332.34 | H9: 334.42 | I9: 320.34 | J9: 305.67 | K9: 307.63 | L9: 300.72 | M9: 326.04 | N9: 301.05 | O9: 307.7 | P9: 315.23 | Q9: 313.52 | R9: 319.22 | T9: http://usda.mannlib.cornell.edu/MannUsda/viewDocumentInfo.do;jsessionid=F154BA78C7C50C021C8CA924EDB72FD5?documentID=1002
B10: Maximum of last three years' production | C10: =MAX(C6:C8) -> 11000000 | D10: lbs | F10: Monthly national avg price received for alfalfa ($/ton) | G10: 128 | H10: 129 | I10: 135 | J10: 148 | K10: 155 | L10: 154 | M10: 152 | N10: 147 | O10: 149 | P10: 152 | Q10: 148 | R10: 148
C11: =C10/100 -> 110000 | D11: cwt | F11: All milk price | G11: =IFERROR((G6),"") -> 18.9 | H11: 18.5 | I11: 17.3 | J11: 16.5 | K11: 16.7 | L11: 17.3 | M11: 17.3 | N11: 18 | O11: 17.8 | P11: 17.9 | Q11: 18.1 | R11: 17.2
B13: Margin coverage level ($/cwt) up to 5,000,000 lbs. | C13: 9.5 | D13: /cwt | F13: Average feed cost calculation:
B14: Margin coverage level ($/cwt) over 5,000,000 lbs. | C14: 7 | D14: /cwt | F14: Cost for corn in $/cwt. | G14: =IFERROR((G8)*1.0728,"") -> 3.64752 | H14: 3.690432 | I14: 3.744072 | J14: 3.679704 | K14: 3.70116 | L14: 3.679704 | M14: 3.744072 | N14: 3.508056 | O14: 3.508056 | P14: 3.497328 | Q14: 3.37932 | R14: 3.465144
B15: Production coverage level (%) | C15: 95 | D15: % | F15: Cost for soymeal in $/cwt. | G15: =IFERROR((G9)*0.00735,"") -> 2.442699 | H15: 2.457987 | I15: 2.354499 | J15: 2.2466745 | K15: 2.2610805 | L15: 2.210292 | M15: 2.396394 | N15: 2.2127175 | O15: 2.261595 | P15: 2.3169405 | Q15: 2.304372 | R15: 2.346267
F16: Cost for alfalfa in $/cwt. | G16: =IFERROR((G10)*0.0137,"") -> 1.7536 | H16: 1.7673 | I16: 1.8495 | J16: 2.0276 | K16: 2.1235 | L16: 2.1098 | M16: 2.0824 | N16: 2.0139 | O16: 2.0413 | P16: 2.0824 | Q16: 2.0276 | R16: 2.0276
B17: Locked coverage discount | D17: %
B18: Premiums for milk marketings up to 5,000,000 lbs. | C18: =VLOOKUP(C$13,C26:D37,2)*((100-C17)/100) -> 0.15 | D18: /cwt | F18: Average feed cost in $/cwt. | G18: =IFERROR(SUM(G14:G16),"") -> 7.843819 | H18: 7.915719 | I18: 7.948071 | J18: 7.9539785 | K18: 8.0857405 | L18: 7.999796 | M18: 8.222866 | N18: 7.7346735 | O18: 7.810951 | P18: 7.8966685 | Q18: 7.711292 | R18: 7.839011
B19: Premiums for milk marketings over 5,000,000 lbs. | C19: =VLOOKUP(C$14,C40:D48,2)*((100-C17)/100) -> 1.107 | D19: /cwt
F20: Actual Dairy Production Margin | G20: =IFERROR(G11-G18,"") -> 11.056181 | H20: 10.584281 | I20: 9.351929 | J20: 8.5460215 | K20: 8.6142595 | L20: 9.300204 | M20: 9.077134 | N20: 10.2653265 | O20: 9.989049 | P20: 10.0033315 | Q20: 10.388708 | R20: 9.360989
B21: Annual Premium cost to participate in MPP | C21: =IF(C10<5000001,C11*(C15/100)*C18,50000*(C15/100)*C18+(C11-50000)*(C15/100)*C19) -> 70224
B22: Total annual cost to participate in MPP | C22: =C3+C21 -> 70324
B25: For milk marketings up to 5,000,000 lbs. | C25: Coverage level | D25: Premium ($/cwt)
C26: 4 | D26: 0
C27: 4.5 | D27: 0.0025 | F27: Dairy Margin Coverage Payment Calculation
C28: 5 | D28: 0.005
C29: 5.5 | D29: 0.03 | F29: Margin coverage level ($/cwt) up to 5,000,000 lbs. | G29: =$C$13 -> 9.5 | H29: 9.5 | I29: 9.5 | J29: 9.5 | K29: 9.5 | L29: 9.5 | M29: 9.5 | N29: 9.5 | O29: 9.5 | P29: 9.5 | Q29: 9.5 | R29: 9.5
C30: 6 | D30: 0.05 | F30: Margin coverage level ($/cwt) over 5,000,000 lbs. | G30: =$C$14 -> 7 | H30: =$C$14 -> 7 | I30: 7 | J30: 7 | K30: 7 | L30: 7 | M30: 7 | N30: 7 | O30: 7 | P30: 7 | Q30: 7 | R30: 7
C31: 6.5 | D31: 0.07 | F31: Production coverage level (%) | G31: =$C$15 -> 95 | H31: 95 | I31: 95 | J31: 95 | K31: 95 | L31: 95 | M31: 95 | N31: 95 | O31: 95 | P31: 95 | Q31: 95 | R31: 95
C32: 7 | D32: 0.08
C33: 7.5 | D33: 0.09 | F33: Actual margin - Threshold margin up to 5,000,000 lbs. | G33: =IF(G20=0,0,IFERROR(G29-G20,"")) -> -1.556181 | H33: -1.084281 | I33: 0.148071 | J33: 0.9539785 | K33: 0.8857405 | L33: 0.199796 | M33: 0.422866 | N33: -0.7653265 | O33: -0.489049 | P33: -0.5033315 | Q33: -0.888708 | R33: 0.139011
C34: 8 | D34: 0.1 | F34: Actual margin - Threshold margin over 5,000,000 lbs. | G34: =IF(G20=0,0,IFERROR(G30-G20,"")) -> -4.056181 | H34: =IF(H20=0,0,IFERROR(H30-H20,"")) -> -3.584281 | I34: -2.351929 | J34: -1.5460215 | K34: -1.6142595 | L34: -2.300204 | M34: -2.077134 | N34: -3.2653265 | O34: -2.989049 | P34: -3.0033315 | Q34: -3.388708 | R34: -2.360989
C35: 8.5 | D35: 0.105
C36: 9 | D36: 0.11 | F36: Dairy Margin Coverage Payment | G36: =IFERROR(IF(AND(G33>0,$C$11<=50000),G33*(G31/100)*$C$11/12,IF(AND(G33>0,$C$11>50000),G33*(G31/100)*50000/12+IF(AND(G34>0,$C$11>50000),G34*(G31/100)*($C$11-50000)/12,0),0)),0) -> 0 | H36: =IFERROR(IF(AND(H33>0,$C$11<=50000),H33*(H31/100)*$C$11/12,IF(AND(H33>0,$C$11>50000),H33*(H31/100)*50000/12+IF(AND(H34>0,$C$11>50000),H34*(H31/100)*($C$11-50000)/12,0),0)),0) -> 0 | I36: 586.114375 | J36: 3776.164896 | K36: 3506.056146 | L36: 790.8591667 | M36: 1673.844583 | N36: 0 | O36: 0 | P36: 0 | Q36: 0 | R36: 550.251875
C37: 9.5 | D37: 0.15
F38: ****Note that the DMC payment value below is the annual payment.****
B39: For milk marketings over 5,000,000 lbs. | C39: Coverage level | D39: Premium ($/cwt) | F39: Annual Dairy Margin Coverage Payment
C40: 4 | D40: 0
C41: 4.5 | D41: 0.0025 | F41: January | G41: =IFERROR(G$36,0) -> 0
C42: 5 | D42: 0.005 | F42: February | G42: =IFERROR(H$36,0) -> 0
C43: 5.5 | D43: 0.1 | F43: March | G43: =IFERROR(I$36,0) -> 586.114375
C44: 6 | D44: 0.31 | F44: April | G44: =IFERROR(J$36,0) -> 3776.164896
C45: 6.5 | D45: 0.65 | F45: May | G45: =IFERROR(K$36,0) -> 3506.056146
C46: 7 | D46: 1.107 | F46: June | G46: =IFERROR(L$36,0) -> 790.8591667
A47: =TODAY() -> 2022-06-06 | C47: 7.5 | D47: 1.413 | F47: July | G47: =IFERROR(M$36,0) -> 1673.844583
C48: 8 | D48: 1.813 | F48: August | G48: =IFERROR(N$36,0) -> 0
F49: September | G49: =IFERROR(O$36,0) -> 0
F50: October | G50: =IFERROR(P$36,0) -> 0
F51: November | G51: =IFERROR(Q$36,0) -> 0
F52: December | G52: =IFERROR(R$36,0) -> 550.251875
F54: Total Annual Margin Protection Payment | G54: =SUM(G41:G52) -> 10883.29104
F56: Cost to participate | G56: =C22 -> 70324
F57: Annual return to participating in MPP | G57: =G54-G56 -> -59440.70896

Sheet 2016 (hidden)
B1: ****Users may type over the default values in the blue boxes****
B2: Dairy Margin Protection Program
B3: Participation fee | C3: 100 | F3: Actual Dairy Production Margin Calculation
F4: 2016 | G4: January | H4: February | I4: March | J4: April | K4: May | L4: June | M4: July | N4: August | O4: September | P4: October | Q4: November | R4: December | T4: See comment
B5: Production history for the past three years: | F5: See comment | T5: http://usda.mannlib.cornell.edu/MannUsda/viewDocumentInfo.do;jsessionid=F154BA78C7C50C021C8CA924EDB72FD5?documentID=1002
B6: 2013 | C6: 10000000 | D6: lbs | F6: All milk price ($/cwt) | G6: 16.1 | H6: 15.7 | I6: 15.3 | J6: 15 | K6: 14.5 | L6: 14.8 | M6: 16.1 | N6: 17.1 | O6: 17.3 | P6: 16.6 | Q6: 17.6 | R6: 18.8
B7: 2014 | C7: 10500000 | D7: lbs | F7: Average feed cost calculation: | T7: http://usda.mannlib.cornell.edu/MannUsda/viewDocumentInfo.do;jsessionid=F154BA78C7C50C021C8CA924EDB72FD5?documentID=1002
B8: 2015 | C8: 11000000 | D8: lbs | F8: Monthly national avg price received for corn ($/bu) | G8: 3.66 | H8: 3.57 | I8: 3.57 | J8: 3.58 | K8: 3.68 | L8: 3.82 | M8: 3.6 | N8: 3.21 | O8: 3.22 | P8: 3.29 | Q8: 3.23 | R8: 3.33 | T8: http://www.ams.usda.gov/mnreports/gx_gr117.txt
F9: Monthly avg price of central Ill. high protein soymeal ($/ton) | G9: 279.56 | H9: 273.61 | I9: 276.22 | J9: 303.81 | K9: 376.35 | L9: 408.57 | M9: 371.49 | N9: 340.8 | O9: 337.95 | P9: 323.27 | Q9: 322.41 | R9: 321.02 | T9: http://usda.mannlib.cornell.edu/MannUsda/viewDocumentInfo.do;jsessionid=F154BA78C7C50C021C8CA924EDB72FD5?documentID=1002
B10: Maximum of last three years' production | C10: =MAX(C6:C8) -> 11000000 | D10: lbs | F10: Monthly national avg price received for alfalfa ($/ton) | G10: 147 | H10: 142 | I10: 144 | J10: 153 | K10: 147 | L10: 142 | M10: 140 | N10: 138 | O10: 137 | P10: 135 | Q10: 130 | R10: 129
C11: =C10/100 -> 110000 | D11: cwt | F11: All milk price | G11: =IFERROR((G6),"") -> 16.1 | H11: 15.7 | I11: 15.3 | J11: 15 | K11: 14.5 | L11: 14.8 | M11: 16.1 | N11: 17.1 | O11: 17.3 | P11: 16.6 | Q11: 17.6 | R11: 18.8
B13: Margin coverage level ($/cwt) up to 5,000,000 lbs. | C13: 9.5 | D13: /cwt | F13: Average feed cost calculation:
B14: Margin coverage level ($/cwt) over 5,000,000 lbs. | C14: 7 | D14: /cwt | F14: Cost for corn in $/cwt. | G14: =IFERROR((G8)*1.0728,"") -> 3.926448 | H14: 3.829896 | I14: 3.829896 | J14: 3.840624 | K14: 3.947904 | L14: 4.098096 | M14: 3.86208 | N14: 3.443688 | O14: 3.454416 | P14: 3.529512 | Q14: 3.465144 | R14: 3.572424
B15: Production coverage level (%) | C15: 95 | D15: % | F15: Cost for soymeal in $/cwt. | G15: =IFERROR((G9)*0.00735,"") -> 2.054766 | H15: 2.0110335 | I15: 2.030217 | J15: 2.2330035 | K15: 2.7661725 | L15: 3.0029895 | M15: 2.7304515 | N15: 2.50488 | O15: 2.4839325 | P15: 2.3760345 | Q15: 2.3697135 | R15: 2.359497
F16: Cost for alfalfa in $/cwt. | G16: =IFERROR((G10)*0.0137,"") -> 2.0139 | H16: 1.9454 | I16: 1.9728 | J16: 2.0961 | K16: 2.0139 | L16: 1.9454 | M16: 1.918 | N16: 1.8906 | O16: 1.8769 | P16: 1.8495 | Q16: 1.781 | R16: 1.7673
B17: Locked coverage discount | D17: %
B18: Premiums for milk marketings up to 5,000,000 lbs. | C18: =VLOOKUP(C$13,C26:D37,2)*((100-C17)/100) -> 0.15 | D18: /cwt | F18: Average feed cost in $/cwt. | G18: =IFERROR(SUM(G14:G16),"") -> 7.995114 | H18: 7.7863295 | I18: 7.832913 | J18: 8.1697275 | K18: 8.7279765 | L18: 9.0464855 | M18: 8.5105315 | N18: 7.839168 | O18: 7.8152485 | P18: 7.7550465 | Q18: 7.6158575 | R18: 7.699221
B19: Premiums for milk marketings over 5,000,000 lbs. | C19: =VLOOKUP(C$14,C40:D48,2)*((100-C17)/100) -> 1.107 | D19: /cwt
F20: Actual Dairy Production Margin | G20: =IFERROR(G11-G18,"") -> 8.104886 | H20: 7.9136705 | I20: 7.467087 | J20: 6.8302725 | K20: 5.7720235 | L20: 5.7535145 | M20: 7.5894685 | N20: 9.260832 | O20: 9.4847515 | P20: 8.8449535 | Q20: 9.9841425 | R20: 11.100779
B21: Annual Premium cost to participate in MPP | C21: =IF(C10<5000001,C11*(C15/100)*C18,50000*(C15/100)*C18+(C11-50000)*(C15/100)*C19) -> 70224
B22: Total annual cost to participate in MPP | C22: =C3+C21 -> 70324
B25: For milk marketings up to 5,000,000 lbs. | C25: Coverage level | D25: Premium ($/cwt)
C26: 4 | D26: 0
C27: 4.5 | D27: 0.0025 | F27: Dairy Margin Coverage Payment Calculation
C28: 5 | D28: 0.005
C29: 5.5 | D29: 0.03 | F29: Margin coverage level ($/cwt) up to 5,000,000 lbs. | G29: =$C$13 -> 9.5 | H29: 9.5 | I29: 9.5 | J29: 9.5 | K29: 9.5 | L29: 9.5 | M29: 9.5 | N29: 9.5 | O29: 9.5 | P29: 9.5 | Q29: 9.5 | R29: 9.5
C30: 6 | D30: 0.05 | F30: Margin coverage level ($/cwt) over 5,000,000 lbs. | G30: =$C$14 -> 7 | H30: =$C$14 -> 7 | I30: 7 | J30: 7 | K30: 7 | L30: 7 | M30: 7 | N30: 7 | O30: 7 | P30: 7 | Q30: 7 | R30: 7
C31: 6.5 | D31: 0.07 | F31: Production coverage level (%) | G31: =$C$15 -> 95 | H31: 95 | I31: 95 | J31: 95 | K31: 95 | L31: 95 | M31: 95 | N31: 95 | O31: 95 | P31: 95 | Q31: 95 | R31: 95
C32: 7 | D32: 0.08
C33: 7.5 | D33: 0.09 | F33: Actual margin - Threshold margin up to 5,000,000 lbs. | G33: =IF(G20=0,0,IFERROR(G29-G20,"")) -> 1.395114 | H33: 1.5863295 | I33: 2.032913 | J33: 2.6697275 | K33: 3.7279765 | L33: 3.7464855 | M33: 1.9105315 | N33: 0.239168 | O33: 0.0152485 | P33: 0.6550465 | Q33: -0.4841425 | R33: -1.600779
C34: 8 | D34: 0.1 | F34: Actual margin - Threshold margin over 5,000,000 lbs. | G34: =IF(G20=0,0,IFERROR(G30-G20,"")) -> -1.104886 | H34: =IF(H20=0,0,IFERROR(H30-H20,"")) -> -0.9136705 | I34: -0.467087 | J34: 0.1697275 | K34: 1.2279765 | L34: 1.2464855 | M34: -0.5894685 | N34: -2.260832 | O34: -2.4847515 | P34: -1.8449535 | Q34: -2.9841425 | R34: -4.100779
C35: 8.5 | D35: 0.105
C36: 9 | D36: 0.11 | F36: Dairy Margin Coverage Payment | G36: =IFERROR(IF(AND(G33>0,$C$11<=50000),G33*(G31/100)*$C$11/12,IF(AND(G33>0,$C$11>50000),G33*(G31/100)*50000/12+IF(AND(G34>0,$C$11>50000),G34*(G31/100)*($C$11-50000)/12,0),0)),0) -> 5522.32625 | H36: =IFERROR(IF(AND(H33>0,$C$11<=50000),H33*(H31/100)*$C$11/12,IF(AND(H33>0,$C$11>50000),H33*(H31/100)*50000/12+IF(AND(H34>0,$C$11>50000),H34*(H31/100)*($C$11-50000)/12,0),0)),0) -> 6279.220938 | I36: 8046.947292 | J36: 11373.87698 | K36: 20589.46202 | L36: 20750.64456 | M36: 7562.520521 | N36: 946.7066667 | O36: 60.35864583 | P36: 2592.892396 | Q36: 0 | R36: 0
C37: 9.5 | D37: 0.15
F38: ****Note that the DMC payment value below is the annual payment.****
B39: For milk marketings over 5,000,000 lbs. | C39: Coverage level | D39: Premium ($/cwt) | F39: Annual Dairy Margin Coverage Payment
C40: 4 | D40: 0
C41: 4.5 | D41: 0.0025 | F41: January | G41: =IFERROR(G$36,0) -> 5522.32625
C42: 5 | D42: 0.005 | F42: February | G42: =IFERROR(H$36,0) -> 6279.220938
C43: 5.5 | D43: 0.1 | F43: March | G43: =IFERROR(I$36,0) -> 8046.947292
C44: 6 | D44: 0.31 | F44: April | G44: =IFERROR(J$36,0) -> 11373.87698
C45: 6.5 | D45: 0.65 | F45: May | G45: =IFERROR(K$36,0) -> 20589.46202
C46: 7 | D46: 1.107 | F46: June | G46: =IFERROR(L$36,0) -> 20750.64456
A47: =TODAY() -> 2022-06-06 | C47: 7.5 | D47: 1.413 | F47: July | G47: =IFERROR(M$36,0) -> 7562.520521
C48: 8 | D48: 1.813 | F48: August | G48: =IFERROR(N$36,0) -> 946.7066667
F49: September | G49: =IFERROR(O$36,0) -> 60.35864583
F50: October | G50: =IFERROR(P$36,0) -> 2592.892396
F51: November | G51: =IFERROR(Q$36,0) -> 0
F52: December | G52: =IFERROR(R$36,0) -> 0
F54: Total Annual Margin Protection Payment | G54: =SUM(G41:G52) -> 83724.95627
F56: Cost to participate | G56: =C22 -> 70324
F57: Annual return to participating in MPP | G57: =G54-G56 -> 13400.95627

Sheet 2015 (hidden)
B1: ****Users may type over the default values in the blue boxes****
B2: Dairy Margin Protection Program
B3: Participation fee | C3: 100 | F3: Actual Dairy Production Margin Calculation
F4: 2015 | G4: January | H4: February | I4: March | J4: April | K4: May | L4: June | M4: July | N4: August | O4: September | P4: October | Q4: November | R4: December | T4: See comment
B5: Production history for the past three years: | F5: See comment | T5: http://usda.mannlib.cornell.edu/MannUsda/viewDocumentInfo.do;jsessionid=F154BA78C7C50C021C8CA924EDB72FD5?documentID=1002
B6: 2012 | C6: 10000000 | D6: lbs | F6: All milk price ($/cwt) | G6: 17.6 | H6: 16.8 | I6: 16.6 | J6: 16.5 | K6: 16.7 | L6: 16.9 | M6: 16.6 | N6: 16.7 | O6: 17.5 | P6: 17.7 | Q6: 18.2 | R6: 17.2
B7: 2013 | C7: 10500000 | D7: lbs | F7: Average feed cost calculation: | T7: http://usda.mannlib.cornell.edu/MannUsda/viewDocumentInfo.do;jsessionid=F154BA78C7C50C021C8CA924EDB72FD5?documentID=1002
B8: 2014 | C8: 11000000 | D8: lbs | F8: Monthly national avg price received for corn ($/bu) | G8: 3.81 | H8: 3.79 | I8: 3.81 | J8: 3.75 | K8: 3.62 | L8: 3.58 | M8: 3.8 | N8: 3.68 | O8: 3.68 | P8: 3.67 | Q8: 3.6 | R8: 3.65 | T8: http://www.ams.usda.gov/mnreports/gx_gr117.txt
F9: Monthly avg price of central Ill. high protein soymeal ($/ton) | G9: 380.02 | H9: 370.38 | I9: 357.83 | J9: 336.61 | K9: 320.23 | L9: 335.03 | M9: 375.71 | N9: 357.85 | O9: 333.62 | P9: 327.97 | Q9: 308.6 | R9: 289.78 | T9: http://usda.mannlib.cornell.edu/MannUsda/viewDocumentInfo.do;jsessionid=F154BA78C7C50C021C8CA924EDB72FD5?documentID=1002
B10: Maximum of last three years' production | C10: =MAX(C6:C8) -> 11000000 | D10: lbs | F10: Monthly national avg price received for alfalfa ($/ton) | G10: 174 | H10: 172 | I10: 172 | J10: 184 | K10: 192 | L10: 178 | M10: 169 | N10: 159 | O10: 157 | P10: 156 | Q10: 150 | R10: 150
C11: =C10/100 -> 110000 | D11: cwt | F11: All milk price | G11: =IFERROR((G6),"") -> 17.6 | H11: 16.8 | I11: 16.6 | J11: 16.5 | K11: 16.7 | L11: 16.9 | M11: 16.6 | N11: 16.7 | O11: 17.5 | P11: 17.7 | Q11: 18.2 | R11: 17.2
B13: Margin coverage level ($/cwt) up to 5,000,000 lbs. | C13: 9.5 | D13: /cwt | F13: Average feed cost calculation:
B14: Margin coverage level ($/cwt) over 5,000,000 lbs. | C14: 7 | D14: /cwt | F14: Cost for corn in $/cwt. | G14: =IFERROR((G8)*1.0728,"") -> 4.087368 | H14: 4.065912 | I14: 4.087368 | J14: 4.023 | K14: 3.883536 | L14: 3.840624 | M14: 4.07664 | N14: 3.947904 | O14: 3.947904 | P14: 3.937176 | Q14: 3.86208 | R14: 3.91572
B15: Production coverage level (%) | C15: 95 | D15: % | F15: Cost for soymeal in $/cwt. | G15: =IFERROR((G9)*0.00735,"") -> 2.793147 | H15: 2.722293 | I15: 2.6300505 | J15: 2.4740835 | K15: 2.3536905 | L15: 2.4624705 | M15: 2.7614685 | N15: 2.6301975 | O15: 2.452107 | P15: 2.4105795 | Q15: 2.26821 | R15: 2.129883
F16: Cost for alfalfa in $/cwt. | G16: =IFERROR((G10)*0.0137,"") -> 2.3838 | H16: 2.3564 | I16: 2.3564 | J16: 2.5208 | K16: 2.6304 | L16: 2.4386 | M16: 2.3153 | N16: 2.1783 | O16: 2.1509 | P16: 2.1372 | Q16: 2.055 | R16: 2.055
B17: Locked coverage discount | D17: %
B18: Premiums for milk marketings up to 5,000,000 lbs. | C18: =VLOOKUP(C$13,C26:D37,2)*((100-C17)/100) -> 0.15 | D18: /cwt | F18: Average feed cost in $/cwt. | G18: =IFERROR(SUM(G14:G16),"") -> 9.264315 | H18: 9.144605 | I18: 9.0738185 | J18: 9.0178835 | K18: 8.8676265 | L18: 8.7416945 | M18: 9.1534085 | N18: 8.7564015 | O18: 8.550911 | P18: 8.4849555 | Q18: 8.18529 | R18: 8.100603
B19: Premiums for milk marketings over 5,000,000 lbs. | C19: =VLOOKUP(C$14,C40:D48,2)*((100-C17)/100) -> 1.107 | D19: /cwt
F20: Actual Dairy Production Margin | G20: =IFERROR(G11-G18,"") -> 8.335685 | H20: 7.655395 | I20: 7.5261815 | J20: 7.4821165 | K20: 7.8323735 | L20: 8.1583055 | M20: 7.4465915 | N20: 7.9435985 | O20: 8.949089 | P20: 9.2150445 | Q20: 10.01471 | R20: 9.099397
B21: Annual Premium cost to participate in MPP | C21: =IF(C10<5000001,C11*(C15/100)*C18,50000*(C15/100)*C18+(C11-50000)*(C15/100)*C19) -> 70224
B22: Total annual cost to participate in MPP | C22: =C3+C21 -> 70324
B25: For milk marketings up to 5,000,000 lbs. | C25: Coverage level | D25: Premium ($/cwt)
C26: 4 | D26: 0
C27: 4.5 | D27: 0.0025 | F27: Dairy Margin Coverage Payment Calculation
C28: 5 | D28: 0.005
C29: 5.5 | D29: 0.03 | F29: Margin coverage level ($/cwt) up to 5,000,000 lbs. | G29: =$C$13 -> 9.5 | H29: 9.5 | I29: 9.5 | J29: 9.5 | K29: 9.5 | L29: 9.5 | M29: 9.5 | N29: 9.5 | O29: 9.5 | P29: 9.5 | Q29: 9.5 | R29: 9.5
C30: 6 | D30: 0.05 | F30: Margin coverage level ($/cwt) over 5,000,000 lbs. | G30: =$C$14 -> 7 | H30: =$C$14 -> 7 | I30: 7 | J30: 7 | K30: 7 | L30: 7 | M30: 7 | N30: 7 | O30: 7 | P30: 7 | Q30: 7 | R30: 7
C31: 6.5 | D31: 0.07 | F31: Production coverage level (%) | G31: =$C$15 -> 95 | H31: 95 | I31: 95 | J31: 95 | K31: 95 | L31: 95 | M31: 95 | N31: 95 | O31: 95 | P31: 95 | Q31: 95 | R31: 95
C32: 7 | D32: 0.08
C33: 7.5 | D33: 0.09 | F33: Actual margin - Threshold margin up to 5,000,000 lbs. | G33: =IF(G20=0,0,IFERROR(G29-G20,"")) -> 1.164315 | H33: 1.844605 | I33: 1.9738185 | J33: 2.0178835 | K33: 1.6676265 | L33: 1.3416945 | M33: 2.0534085 | N33: 1.5564015 | O33: 0.550911 | P33: 0.2849555 | Q33: -0.51471 | R33: 0.400603
C34: 8 | D34: 0.1 | F34: Actual margin - Threshold margin over 5,000,000 lbs. | G34: =IF(G20=0,0,IFERROR(G30-G20,"")) -> -1.335685 | H34: =IF(H20=0,0,IFERROR(H30-H20,"")) -> -0.655395 | I34: -0.5261815 | J34: -0.4821165 | K34: -0.8323735 | L34: -1.1583055 | M34: -0.4465915 | N34: -0.9435985 | O34: -1.949089 | P34: -2.2150445 | Q34: -3.01471 | R34: -2.099397
C35: 8.5 | D35: 0.105
C36: 9 | D36: 0.11 | F36: Dairy Margin Coverage Payment | G36: =IFERROR(IF(AND(G33>0,$C$11<=50000),G33*(G31/100)*$C$11/12,IF(AND(G33>0,$C$11>50000),G33*(G31/100)*50000/12+IF(AND(G34>0,$C$11>50000),G34*(G31/100)*($C$11-50000)/12,0),0)),0) -> 4608.746875 | H36: =IFERROR(IF(AND(H33>0,$C$11<=50000),H33*(H31/100)*$C$11/12,IF(AND(H33>0,$C$11>50000),H33*(H31/100)*50000/12+IF(AND(H34>0,$C$11>50000),H34*(H31/100)*($C$11-50000)/12,0),0)),0) -> 7301.561458 | I36: 7813.031562 | J36: 7987.455521 | K36: 6601.021563 | L36: 5310.874063 | M36: 8128.075312 | N36: 6160.755938 | O36: 2180.689375 | P36: 1127.948854 | Q36: 0 | R36: 1585.720208
C37: 9.5 | D37: 0.15
F38: ****Note that the DMC payment value below is the annual payment.****
B39: For milk marketings over 5,000,000 lbs. | C39: Coverage level | D39: Premium ($/cwt) | F39: Annual Dairy Margin Coverage Payment
C40: 4 | D40: 0
C41: 4.5 | D41: 0.0025 | F41: January | G41: =IFERROR(G$36,0) -> 4608.746875
C42: 5 | D42: 0.005 | F42: February | G42: =IFERROR(H$36,0) -> 7301.561458
C43: 5.5 | D43: 0.1 | F43: March | G43: =IFERROR(I$36,0) -> 7813.031562
C44: 6 | D44: 0.31 | F44: April | G44: =IFERROR(J$36,0) -> 7987.455521
C45: 6.5 | D45: 0.65 | F45: May | G45: =IFERROR(K$36,0) -> 6601.021563
C46: 7 | D46: 1.107 | F46: June | G46: =IFERROR(L$36,0) -> 5310.874063
A47: =TODAY() -> 2022-06-06 | C47: 7.5 | D47: 1.413 | F47: July | G47: =IFERROR(M$36,0) -> 8128.075312
C48: 8 | D48: 1.813 | F48: August | G48: =IFERROR(N$36,0) -> 6160.755938
F49: September | G49: =IFERROR(O$36,0) -> 2180.689375
F50: October | G50: =IFERROR(P$36,0) -> 1127.948854
F51: November | G51: =IFERROR(Q$36,0) -> 0
F52: December | G52: =IFERROR(R$36,0) -> 1585.720208
F54: Total Annual Margin Protection Payment | G54: =SUM(G41:G52) -> 58805.88073
F56: Cost to participate | G56: =C22 -> 70324
F57: Annual return to participating in MPP | G57: =G54-G56 -> -11518.11927

Sheet 2014 (hidden)
B1: ****Users may type over the default values in the blue boxes****
B2: Dairy Margin Protection Program
B3: Participation fee | C3: 100 | F3: Actual Dairy Production Margin Calculation
F4: 2014 | G4: January | H4: February | I4: March | J4: April | K4: May | L4: June | M4: July | N4: August | O4: September | P4: October | Q4: November | R4: December | T4: See comment
B5: Production history for the past three years: | F5: See comment | T5: http://usda.mannlib.cornell.edu/MannUsda/viewDocumentInfo.do;jsessionid=F154BA78C7C50C021C8CA924EDB72FD5?documentID=1002
B6: 2011 | C6: 10000000 | D6: lbs | F6: All milk price ($/cwt) | G6: 23.5 | H6: 24.9 | I6: 25.4 | J6: 25.3 | K6: 24.2 | L6: 23.2 | M6: 23.3 | N6: 24.1 | O6: 25.7 | P6: 25.3 | Q6: 23 | R6: 20.3
B7: 2012 | C7: 10500000 | D7: lbs | F7: Average feed cost calculation: | T7: http://usda.mannlib.cornell.edu/MannUsda/viewDocumentInfo.do;jsessionid=F154BA78C7C50C021C8CA924EDB72FD5?documentID=1002
B8: 2013 | C8: 11000000 | D8: lbs | F8: Monthly national avg price received for corn ($/bu) | G8: 4.42 | H8: 4.35 | I8: 4.54 | J8: 4.71 | K8: 4.71 | L8: 4.49 | M8: 4.05 | N8: 3.63 | O8: 3.48 | P8: 3.28 | Q8: 3.58 | R8: 3.77 | T8: http://www.ams.usda.gov/mnreports/gx_gr117.txt
F9: Monthly avg price of central Ill. high protein soymeal ($/ton) | G9: 479.54 | H9: 509.25 | I9: 495.71 | J9: 514.01 | K9: 519.38 | L9: 501.72 | M9: 450.79 | N9: 490.3 | O9: 525.72 | P9: 381.5 | Q9: 441.39 | R9: 431.73 | T9: http://usda.mannlib.cornell.edu/MannUsda/viewDocumentInfo.do;jsessionid=F154BA78C7C50C021C8CA924EDB72FD5?documentID=1002
B10: Maximum of last three years' production | C10: =MAX(C6:C8) -> 11000000 | D10: lbs | F10: Monthly national avg price received for alfalfa ($/ton) | G10: 185 | H10: 188 | I10: 191 | J10: 206 | K10: 224 | L10: 222 | M10: 216 | N10: 209 | O10: 197 | P10: 194 | Q10: 184 | R10: 182
C11: =C10/100 -> 110000 | D11: cwt | F11: All milk price | G11: =IFERROR((G6),"") -> 23.5 | H11: 24.9 | I11: 25.4 | J11: 25.3 | K11: 24.2 | L11: 23.2 | M11: 23.3 | N11: 24.1 | O11: 25.7 | P11: 25.3 | Q11: 23 | R11: 20.3
B13: Margin coverage level ($/cwt) | C13: 8 | D13: /cwt | F13: Average feed cost calculation:
F14: Cost for corn in $/cwt. | G14: =IFERROR((G8)*1.0728,"") -> 4.741776 | H14: 4.66668 | I14: 4.870512 | J14: 5.052888 | K14: 5.052888 | L14: 4.816872 | M14: 4.34484 | N14: 3.894264 | O14: 3.733344 | P14: 3.518784 | Q14: 3.840624 | R14: 4.044456
B15: Production coverage level (%) | C15: 95 | D15: % | F15: Cost for soymeal in $/cwt. | G15: =IFERROR((G9)*0.00735,"") -> 3.524619 | H15: 3.7429875 | I15: 3.6434685 | J15: 3.7779735 | K15: 3.817443 | L15: 3.687642 | M15: 3.3133065 | N15: 3.603705 | O15: 3.864042 | P15: 2.804025 | Q15: 3.2442165 | R15: 3.1732155
F16: Cost for alfalfa in $/cwt. | G16: =IFERROR((G10)*0.0137,"") -> 2.5345 | H16: 2.5756 | I16: 2.6167 | J16: 2.8222 | K16: 3.0688 | L16: 3.0414 | M16: 2.9592 | N16: 2.8633 | O16: 2.6989 | P16: 2.6578 | Q16: 2.5208 | R16: 2.4934
B17: Locked coverage discount | C17: 0 | D17: %
B18: Premiums for milk marketings up to 5,000,000 lbs. | C18: =VLOOKUP(C$13,C26:D37,2)*((100-C17)/100) -> 0.1 | D18: /cwt | F18: Average feed cost in $/cwt. | G18: =IFERROR(SUM(G14:G16),"") -> 10.800895 | H18: 10.9852675 | I18: 11.1306805 | J18: 11.6530615 | K18: 11.939131 | L18: 11.545914 | M18: 10.6173465 | N18: 10.361269 | O18: 10.296286 | P18: 8.980609 | Q18: 9.6056405 | R18: 9.7110715
B19: Premiums for milk marketings over 5,000,000 lbs. | C19: =VLOOKUP(C$13,C40:D48,2)*((100-C17)/100) -> 1.813 | D19: /cwt
F20: Actual Dairy Production Margin | G20: =IFERROR(G11-G18,"") -> 12.699105 | H20: 13.9147325 | I20: 14.2693195 | J20: 13.6469385 | K20: 12.260869 | L20: 11.654086 | M20: 12.6826535 | N20: 13.738731 | O20: 15.403714 | P20: 16.319391 | Q20: 13.3943595 | R20: 10.5889285
B21: Annual Premium cost to participate in MPP | C21: =IF(C10<5000001,C11*(C15/100)*C18,50000*(C15/100)*C18+(C11-50000)*(C15/100)*C19) -> 108091
B22: Total annual cost to participate in MPP | C22: =C3+C21 -> 108191
B25: For milk marketings up to 5,000,000 lbs. | C25: Coverage level | D25: Premium ($/cwt)
C26: 4 | D26: 0
C27: 4.5 | D27: 0.0025 | F27: Dairy Margin Coverage Payment Calculation
C28: 5 | D28: 0.005
C29: 5.5 | D29: 0.03 | F29: Margin coverage level ($/cwt) | G29: =$C$13 -> 8 | H29: 8 | I29: 8 | J29: 8 | K29: 8 | L29: 8 | M29: 8 | N29: 8 | O29: 8 | P29: 8 | Q29: 8 | R29: 8
C30: 6 | D30: 0.05 | F30: Production coverage level (%) | G30: =$C$15 -> 95 | H30: 95 | I30: 95 | J30: 95 | K30: 95 | L30: 95 | M30: 95 | N30: 95 | O30: 95 | P30: 95 | Q30: 95 | R30: 95
C31: 6.5 | D31: 0.07
C32: 7 | D32: 0.08 | F32: Actual margin - Threshold margin | G32: =IF(G20=0,0,IFERROR(G29-G20,"")) -> -4.699105 | H32: =IF(H20=0,0,IFERROR(H29-H20,"")) -> -5.9147325 | I32: -6.2693195 | J32: -5.6469385 | K32: -4.260869 | L32: -3.654086 | M32: -4.6826535 | N32: -5.738731 | O32: -7.403714 | P32: -8.319391 | Q32: -5.3943595 | R32: -2.5889285
C33: 7.5 | D33: 0.09
C34: 8 | D34: 0.1 | F34: Dairy Margin Coverage Payment | G34: =IFERROR(IF(G32>0,G32*(G30/100)*$C$11/6,0),0) -> 0 | H34: =IFERROR(IF(H32>0,H32*(H30/100)*$C$11/6,0),0) -> 0 | I34: 0 | J34: 0 | K34: 0 | L34: 0 | M34: 0 | N34: 0 | O34: 0 | P34: 0 | Q34: 0 | R34: 0
C35: 8.5 | D35: 0.105
C36: 9 | D36: 0.11
C37: 9.5 | D37: 0.15
F38: ****Note that the DMC payment value below is the annual payment.****
B39: For milk marketings over 5,000,000 lbs. | C39: Coverage level | D39: Premium ($/cwt) | F39: Annual Dairy Margin Coverage Payment
C40: 4 | D40: 0
C41: 4.5 | D41: 0.0025 | F41: January | G41: =IFERROR(G$34,0) -> 0
C42: 5 | D42: 0.005 | F42: February | G42: =IFERROR(H$34,0) -> 0
C43: 5.5 | D43: 0.1 | F43: March | G43: =IFERROR(I$34,0) -> 0
C44: 6 | D44: 0.31 | F44: April | G44: =IFERROR(J$34,0) -> 0
C45: 6.5 | D45: 0.65 | F45: May | G45: =IFERROR(K$34,0) -> 0
C46: 7 | D46: 1.107 | F46: June | G46: =IFERROR(L$34,0) -> 0
A47: =TODAY() -> 2022-06-06 | C47: 7.5 | D47: 1.413 | F47: July | G47: =IFERROR(M$34,0) -> 0
C48: 8 | D48: 1.813 | F48: August | G48: =IFERROR(N$34,0) -> 0
F49: September | G49: =IFERROR(O$34,0) -> 0
F50: October | G50: =IFERROR(P$34,0) -> 0
F51: November | G51: =IFERROR(Q$34,0) -> 0
F52: December | G52: =IFERROR(R$34,0) -> 0
F54: Total Annual Margin Protection Payment | G54: =SUM(G41:G52) -> 0
F56: Cost to participate | G56: =C22 -> 108191
F57: Annual return to participating in MPP | G57: =G54-G56 -> -108191

Sheet 2013 (hidden)
B1: ****Users may type over the default values in the blue boxes****
B2: Dairy Margin Protection Program
B3: Participation fee | C3: 100 | F3: Actual Dairy Production Margin Calculation
F4: 2013 | G4: January | H4: February | I4: March | J4: April | K4: May | L4: June | M4: July | N4: August | O4: September | P4: October | Q4: November | R4: December | T4: See comment
B5: Production history for the past three years: | F5: See comment | T5: http://usda.mannlib.cornell.edu/MannUsda/viewDocumentInfo.do;jsessionid=F154BA78C7C50C021C8CA924EDB72FD5?documentID=1002
B6: 2010 | C6: 10000000 | D6: lbs | F6: All milk price ($/cwt) | G6: 19.9 | H6: 19.5 | I6: 19.1 | J6: 19.5 | K6: 19.7 | L6: 19.5 | M6: 19 | N6: 19.5 | O6: 20.1 | P6: 20.7 | Q6: 21.6 | R6: 22
B7: 2011 | C7: 10500000 | D7: lbs | F7: Average feed cost calculation: | T7: http://usda.mannlib.cornell.edu/MannUsda/viewDocumentInfo.do;jsessionid=F154BA78C7C50C021C8CA924EDB72FD5?documentID=1002
B8: 2012 | C8: 11000000 | D8: lbs | F8: Monthly national avg price received for corn ($/bu) | G8: 6.96 | H8: 7.04 | I8: 7.13 | J8: 6.97 | K8: 6.97 | L8: 6.97 | M8: 6.79 | N8: 6.21 | O8: 5.4 | P8: 4.61 | Q8: 4.35 | R8: 4.41 | T8: http://www.ams.usda.gov/mnreports/gx_gr117.txt
F9: Monthly avg price of central Ill. high protein soymeal ($/ton) | G9: 431.39 | H9: 440.665 | I9: 437.325 | J9: 422.07 | K9: 465.72 | L9: 496.775 | M9: 544.59 | N9: 464.905 | O9: 500.39 | P9: 443.63 | Q9: 451.13 | R9: 498.31 | T9: http://usda.mannlib.cornell.edu/MannUsda/viewDocumentInfo.do;jsessionid=F154BA78C7C50C021C8CA924EDB72FD5?documentID=1002
B10: Maximum of last three years' production | C10: =MAX(C6:C8) -> 11000000 | D10: lbs | F10: Monthly national avg price received for alfalfa ($/ton) | G10: 217 | H10: 218 | I10: 219 | J10: 213 | K10: 221 | L10: 220 | M10: 209 | N10: 200 | O10: 194 | P10: 193 | Q10: 188 | R10: 187
C11: =C10/100 -> 110000 | D11: cwt | F11: All milk price | G11: =IFERROR((G6),"") -> 19.9 | H11: 19.5 | I11: 19.1 | J11: 19.5 | K11: 19.7 | L11: 19.5 | M11: 19 | N11: 19.5 | O11: 20.1 | P11: 20.7 | Q11: 21.6 | R11: 22
B13: Margin coverage level ($/cwt) | C13: 8 | D13: /cwt | F13: Average feed cost calculation:
F14: Cost for corn in $/cwt. | G14: =IFERROR((G8)*1.0728,"") -> 7.466688 | H14: 7.552512 | I14: 7.649064 | J14: 7.477416 | K14: 7.477416 | L14: 7.477416 | M14: 7.284312 | N14: 6.662088 | O14: 5.79312 | P14: 4.945608 | Q14: 4.66668 | R14: 4.731048
B15: Production coverage level (%) | C15: 95 | D15: % | F15: Cost for soymeal in $/cwt. | G15: =IFERROR((G9)*0.00735,"") -> 3.1707165 | H15: 3.23888775 | I15: 3.21433875 | J15: 3.1022145 | K15: 3.423042 | L15: 3.65129625 | M15: 4.0027365 | N15: 3.41705175 | O15: 3.6778665 | P15: 3.2606805 | Q15: 3.3158055 | R15: 3.6625785
F16: Cost for alfalfa in $/cwt. | G16: =IFERROR((G10)*0.0137,"") -> 2.9729 | H16: 2.9866 | I16: 3.0003 | J16: 2.9181 | K16: 3.0277 | L16: 3.014 | M16: 2.8633 | N16: 2.74 | O16: 2.6578 | P16: 2.6441 | Q16: 2.5756 | R16: 2.5619
B17: Locked coverage discount | C17: 0 | D17: %
B18: Premiums for milk marketings up to 5,000,000 lbs. | C18: =VLOOKUP(C$13,C26:D37,2)*((100-C17)/100) -> 0.1 | D18: /cwt | F18: Average feed cost in $/cwt. | G18: =IFERROR(SUM(G14:G16),"") -> 13.6103045 | H18: 13.77799975 | I18: 13.86370275 | J18: 13.4977305 | K18: 13.928158 | L18: 14.14271225 | M18: 14.1503485 | N18: 12.81913975 | O18: 12.1287865 | P18: 10.8503885 | Q18: 10.5580855 | R18: 10.9555265
B19: Premiums for milk marketings over 5,000,000 lbs. | C19: =VLOOKUP(C$13,C40:D48,2)*((100-C17)/100) -> 1.813 | D19: /cwt
F20: Actual Dairy Production Margin | G20: =IFERROR(G11-G18,"") -> 6.2896955 | H20: 5.72200025 | I20: 5.23629725 | J20: 6.0022695 | K20: 5.771842 | L20: 5.35728775 | M20: 4.8496515 | N20: 6.68086025 | O20: 7.9712135 | P20: 9.8496115 | Q20: 11.0419145 | R20: 11.0444735
B21: Annual Premium cost to participate in MPP | C21: =IF(C10<5000001,C11*(C15/100)*C18,50000*(C15/100)*C18+(C11-50000)*(C15/100)*C19) -> 108091
B22: Total annual cost to participate in MPP | C22: =C3+C21 -> 108191
B25: For milk marketings up to 5,000,000 lbs. | C25: Coverage level | D25: Premium ($/cwt)
C26: 4 | D26: 0
C27: 4.5 | D27: 0.0025 | F27: Dairy Margin Coverage Payment Calculation
C28: 5 | D28: 0.005
C29: 5.5 | D29: 0.03 | F29: Margin coverage level ($/cwt) | G29: =$C$13 -> 8 | H29: 8 | I29: 8 | J29: 8 | K29: 8 | L29: 8 | M29: 8 | N29: 8 | O29: 8 | P29: 8 | Q29: 8 | R29: 8
C30: 6 | D30: 0.05 | F30: Production coverage level (%) | G30: =$C$15 -> 95 | H30: 95 | I30: 95 | J30: 95 | K30: 95 | L30: 95 | M30: 95 | N30: 95 | O30: 95 | P30: 95 | Q30: 95 | R30: 95
C31: 6.5 | D31: 0.07
C32: 7 | D32: 0.08 | F32: Actual margin - Threshold margin | G32: =IF(G20=0,0,IFERROR(G29-G20,"")) -> 1.7103045 | H32: =IF(H20=0,0,IFERROR(H29-H20,"")) -> 2.27799975 | I32: 2.76370275 | J32: 1.9977305 | K32: 2.228158 | L32: 2.64271225 | M32: 3.1503485 | N32: 1.31913975 | O32: 0.0287865 | P32: -1.8496115 | Q32: -3.0419145 | R32: -3.0444735
C33: 7.5 | D33: 0.09
C34: 8 | D34: 0.1 | F34: Dairy Margin Coverage Payment | G34: =IFERROR(IF(G32>0,G32*(G30/100)*$C$11/6,0),0) -> 29787.80337 | H34: =IFERROR(IF(H32>0,H32*(H30/100)*$C$11/6,0),0) -> 39675.16231 | I34: 48134.48956 | J34: 34793.80621 | K34: 38807.08517 | L34: 46027.23835 | M34: 54868.56971 | N34: 22975.01731 | O34: 501.364875 | P34: 0 | Q34: 0 | R34: 0
C35: 8.5 | D35: 0.105
C36: 9 | D36: 0.11
C37: 9.5 | D37: 0.15
F38: ****Note that the DMC payment value below is the annual payment.****
B39: For milk marketings over 5,000,000 lbs. | C39: Coverage level | D39: Premium ($/cwt) | F39: Annual Dairy Margin Coverage Payment
C40: 4 | D40: 0
C41: 4.5 | D41: 0.0025 | F41: January | G41: =IFERROR(G$34,0) -> 29787.80337
C42: 5 | D42: 0.005 | F42: February | G42: =IFERROR(H$34,0) -> 39675.16231
C43: 5.5 | D43: 0.1 | F43: March | G43: =IFERROR(I$34,0) -> 48134.48956
C44: 6 | D44: 0.31 | F44: April | G44: =IFERROR(J$34,0) -> 34793.80621
C45: 6.5 | D45: 0.65 | F45: May | G45: =IFERROR(K$34,0) -> 38807.08517
C46: 7 | D46: 1.107 | F46: June | G46: =IFERROR(L$34,0) -> 46027.23835
A47: =TODAY() -> 2022-06-06 | C47: 7.5 | D47: 1.413 | F47: July | G47: =IFERROR(M$34,0) -> 54868.56971
C48: 8 | D48: 1.813 | F48: August | G48: =IFERROR(N$34,0) -> 22975.01731
F49: September | G49: =IFERROR(O$34,0) -> 501.364875
F50: October | G50: =IFERROR(P$34,0) -> 0
F51: November | G51: =IFERROR(Q$34,0) -> 0
F52: December | G52: =IFERROR(R$34,0) -> 0
F54: Total Annual Margin Protection Payment | G54: =SUM(G41:G52) -> 315570.5369
F56: Cost to participate | G56: =C22 -> 108191
F57: Annual return to participating in MPP | G57: =G54-G56 -> 207379.5369

Sheet 2012 (hidden)
B1: ****Users may type over the default values in the blue boxes****
B2: Dairy Margin Protection Program
B3: Participation fee | C3: 100 | F3: Actual Dairy Production Margin Calculation
F4: 2012 | G4: January | H4: February | I4: March | J4: April | K4: May | L4: June | M4: July | N4: August | O4: September | P4: October | Q4: November | R4: December | T4: See comment
B5: Production history for the past three years: | F5: See comment | T5: http://usda.mannlib.cornell.edu/MannUsda/viewDocumentInfo.do;jsessionid=F154BA78C7C50C021C8CA924EDB72FD5?documentID=1002
B6: 2009 | C6: 10000000 | D6: lbs | F6: All milk price ($/cwt) | G6: 19 | H6: 17.7 | I6: 17.2 | J6: 17.1 | K6: 16.2 | L6: 16.6 | M6: 16.9 | N6: 18.1 | O6: 19.6 | P6: 21.5 | Q6: 22 | R6: 22.9
B7: 2010 | C7: 10500000 | D7: lbs | F7: Average feed cost calculation: | T7: http://usda.mannlib.cornell.edu/MannUsda/viewDocumentInfo.do;jsessionid=F154BA78C7C50C021C8CA924EDB72FD5?documentID=1002
B8: 2011 | C8: 11000000 | D8: lbs | F8: Monthly national avg price received for corn ($/bu) | G8: 6.07 | H8: 6.28 | I8: 6.35 | J8: 6.34 | K8: 6.34 | L8: 6.37 | M8: 7.14 | N8: 7.63 | O8: 6.89 | P8: 6.78 | Q8: 7.01 | R8: 6.87 | T8: http://www.ams.usda.gov/mnreports/gx_gr117.txt
F9: Monthly avg price of central Ill. high protein soymeal ($/ton) | G9: 310.65 | H9: 330.37 | I9: 365.96 | J9: 394.3 | K9: 415.17 | L9: 422.6 | M9: 515.83 | N9: 564.69 | O9: 529.37 | P9: 488.46 | Q9: 466.16 | R9: 460.09 | T9: http://usda.mannlib.cornell.edu/MannUsda/viewDocumentInfo.do;jsessionid=F154BA78C7C50C021C8CA924EDB72FD5?documentID=1002
B10: Maximum of last three years' production | C10: =MAX(C6:C8) -> 11000000 | D10: lbs | F10: Monthly national avg price received for alfalfa ($/ton) | G10: 193 | H10: 194 | I10: 200 | J10: 210 | K10: 215 | L10: 205 | M10: 203 | N10: 203 | O10: 206 | P10: 212 | Q10: 215 | R10: 217
C11: =C10/100 -> 110000 | D11: cwt | F11: All milk price | G11: =IFERROR((G6),"") -> 19 | H11: 17.7 | I11: 17.2 | J11: 17.1 | K11: 16.2 | L11: 16.6 | M11: 16.9 | N11: 18.1 | O11: 19.6 | P11: 21.5 | Q11: 22 | R11: 22.9
B13: Margin coverage level ($/cwt) | C13: 8 | D13: /cwt | F13: Average feed cost calculation:
F14: Cost for corn in $/cwt. | G14: =IFERROR((G8)*1.0728,"") -> 6.511896 | H14: 6.737184 | I14: 6.81228 | J14: 6.801552 | K14: 6.801552 | L14: 6.833736 | M14: 7.659792 | N14: 8.185464 | O14: 7.391592 | P14: 7.273584 | Q14: 7.520328 | R14: 7.370136
B15: Production coverage level (%) | C15: 95 | D15: % | F15: Cost for soymeal in $/cwt. | G15: =IFERROR((G9)*0.00735,"") -> 2.2832775 | H15: 2.4282195 | I15: 2.689806 | J15: 2.898105 | K15: 3.0514995 | L15: 3.10611 | M15: 3.7913505 | N15: 4.1504715 | O15: 3.8908695 | P15: 3.590181 | Q15: 3.426276 | R15: 3.3816615
F16: Cost for alfalfa in $/cwt. | G16: =IFERROR((G10)*0.0137,"") -> 2.6441 | H16: 2.6578 | I16: 2.74 | J16: 2.877 | K16: 2.9455 | L16: 2.8085 | M16: 2.7811 | N16: 2.7811 | O16: 2.8222 | P16: 2.9044 | Q16: 2.9455 | R16: 2.9729
B17: Locked coverage discount | C17: 0 | D17: %
B18: Premiums for milk marketings up to 5,000,000 lbs. | C18: =VLOOKUP(C$13,C26:D37,2)*((100-C17)/100) -> 0.1 | D18: /cwt | F18: Average feed cost in $/cwt. | G18: =IFERROR(SUM(G14:G16),"") -> 11.4392735 | H18: 11.8232035 | I18: 12.242086 | J18: 12.576657 | K18: 12.7985515 | L18: 12.748346 | M18: 14.2322425 | N18: 15.1170355 | O18: 14.1046615 | P18: 13.768165 | Q18: 13.892104 | R18: 13.7246975
B19: Premiums for milk marketings over 5,000,000 lbs. | C19: =VLOOKUP(C$13,C40:D48,2)*((100-C17)/100) -> 1.813 | D19: /cwt
F20: Actual Dairy Production Margin | G20: =IFERROR(G11-G18,"") -> 7.5607265 | H20: 5.8767965 | I20: 4.957914 | J20: 4.523343 | K20: 3.4014485 | L20: 3.851654 | M20: 2.6677575 | N20: 2.9829645 | O20: 5.4953385 | P20: 7.731835 | Q20: 8.107896 | R20: 9.1753025
B21: Annual Premium cost to participate in MPP | C21: =IF(C10<5000001,C11*(C15/100)*C18,50000*(C15/100)*C18+(C11-50000)*(C15/100)*C19) -> 108091
B22: Total annual cost to participate in MPP | C22: =C3+C21 -> 108191
B25: For milk marketings up to 5,000,000 lbs. | C25: Coverage level | D25: Premium ($/cwt)
C26: 4 | D26: 0
C27: 4.5 | D27: 0.0025 | F27: Dairy Margin Coverage Payment Calculation
C28: 5 | D28: 0.005
C29: 5.5 | D29: 0.03 | F29: Margin coverage level ($/cwt) | G29: =$C$13 -> 8 | H29: 8 | I29: 8 | J29: 8 | K29: 8 | L29: 8 | M29: 8 | N29: 8 | O29: 8 | P29: 8 | Q29: 8 | R29: 8
C30: 6 | D30: 0.05 | F30: Production coverage level (%) | G30: =$C$15 -> 95 | H30: 95 | I30: 95 | J30: 95 | K30: 95 | L30: 95 | M30: 95 | N30: 95 | O30: 95 | P30: 95 | Q30: 95 | R30: 95
C31: 6.5 | D31: 0.07
C32: 7 | D32: 0.08 | F32: Actual margin - Threshold margin | G32: =IF(G20=0,0,IFERROR(G29-G20,"")) -> 0.4392735 | H32: =IF(H20=0,0,IFERROR(H29-H20,"")) -> 2.1232035 | I32: 3.042086 | J32: 3.476657 | K32: 4.5985515 | L32: 4.148346 | M32: 5.3322425 | N32: 5.0170355 | O32: 2.5046615 | P32: 0.268165 | Q32: -0.107896 | R32: -1.1753025
C33: 7.5 | D33: 0.09
C34: 8 | D34: 0.1 | F34: Dairy Margin Coverage Payment | G34: =IFERROR(IF(G32>0,G32*(G30/100)*$C$11/6,0),0) -> 7650.680125 | H34: =IFERROR(IF(H32>0,H32*(H30/100)*$C$11/6,0),0) -> 36979.12763 | I34: 52982.99783 | J34: 60551.77608 | K34: 80091.43862 | L34: 72250.3595 | M34: 92869.89021 | N34: 87380.03496 | O34: 43622.85446 | P34: 4670.540417 | Q34: 0 | R34: 0
C35: 8.5 | D35: 0.105
C36: 9 | D36: 0.11
C37: 9.5 | D37: 0.15
F38: ****Note that the DMC payment value below is the annual payment.****
B39: For milk marketings over 5,000,000 lbs. | C39: Coverage level | D39: Premium ($/cwt) | F39: Annual Dairy Margin Coverage Payment
C40: 4 | D40: 0
C41: 4.5 | D41: 0.0025 | F41: January | G41: =IFERROR(G$34,0) -> 7650.680125
C42: 5 | D42: 0.005 | F42: February | G42: =IFERROR(H$34,0) -> 36979.12763
C43: 5.5 | D43: 0.1 | F43: March | G43: =IFERROR(I$34,0) -> 52982.99783
C44: 6 | D44: 0.31 | F44: April | G44: =IFERROR(J$34,0) -> 60551.77608
C45: 6.5 | D45: 0.65 | F45: May | G45: =IFERROR(K$34,0) -> 80091.43862
C46: 7 | D46: 1.107 | F46: June | G46: =IFERROR(L$34,0) -> 72250.3595
A47: =TODAY() -> 2022-06-06 | C47: 7.5 | D47: 1.413 | F47: July | G47: =IFERROR(M$34,0) -> 92869.89021
C48: 8 | D48: 1.813 | F48: August | G48: =IFERROR(N$34,0) -> 87380.03496
F49: September | G49: =IFERROR(O$34,0) -> 43622.85446
F50: October | G50: =IFERROR(P$34,0) -> 4670.540417
F51: November | G51: =IFERROR(Q$34,0) -> 0
F52: December | G52: =IFERROR(R$34,0) -> 0
F54: Total Annual Margin Protection Payment | G54: =SUM(G41:G52) -> 539049.6998
F56: Cost to participate | G56: =C22 -> 108191
F57: Annual return to participating in MPP | G57: =G54-G56 -> 430858.6998

Sheet 2011 (hidden)
B1: ****Users may type over the default values in the blue boxes****
B2: Dairy Margin Protection Program
B3: Participation fee | C3: 100 | F3: Actual Dairy Production Margin Calculation
F4: 2011 | G4: January | H4: February | I4: March | J4: April | K4: May | L4: June | M4: July | N4: August | O4: September | P4: October | Q4: November | R4: December | T4: See comment
B5: Production history for the past three years: | F5: See comment | T5: http://usda.mannlib.cornell.edu/MannUsda/viewDocumentInfo.do;jsessionid=F154BA78C7C50C021C8CA924EDB72FD5?documentID=1002
B6: 2008 | C6: 10000000 | D6: lbs | F6: All milk price ($/cwt) | G6: 16.7 | H6: 19.1 | I6: 20.4 | J6: 19.6 | K6: 19.6 | L6: 21.1 | M6: 21.9 | N6: 22 | O6: 21.1 | P6: 19.9 | Q6: 20.4 | R6: 19.8
B7: 2009 | C7: 10500000 | D7: lbs | F7: Average feed cost calculation: | T7: http://usda.mannlib.cornell.edu/MannUsda/viewDocumentInfo.do;jsessionid=F154BA78C7C50C021C8CA924EDB72FD5?documentID=1002
B8: 2010 | C8: 11000000 | D8: lbs | F8: Monthly national avg price received for corn ($/bu) | G8: 4.94 | H8: 5.65 | I8: 5.53 | J8: 6.36 | K8: 6.32 | L8: 6.38 | M8: 6.33 | N8: 6.88 | O8: 6.38 | P8: 5.73 | Q8: 5.83 | R8: 5.86 | T8: http://www.ams.usda.gov/mnreports/gx_gr117.txt
F9: Monthly avg price of central Ill. high protein soymeal ($/ton) | G9: 368.54 | H9: 358.59 | I9: 345.43 | J9: 335.87 | K9: 342.3 | L9: 347.45 | M9: 346.52 | N9: 349.6 | O9: 336.32 | P9: 301.45 | Q9: 292.215 | R9: 281.655 | T9: http://usda.mannlib.cornell.edu/MannUsda/viewDocumentInfo.do;jsessionid=F154BA78C7C50C021C8CA924EDB72FD5?documentID=1002
B10: Maximum of last three years' production | C10: =MAX(C6:C8) -> 11000000 | D10: lbs | F10: Monthly national avg price received for alfalfa ($/ton) | G10: 121 | H10: 129 | I10: 142 | J10: 161 | K10: 191 | L10: 185 | M10: 198 | N10: 196 | O10: 198 | P10: 204 | Q10: 193 | R10: 195
C11: =C10/100 -> 110000 | D11: cwt | F11: All milk price | G11: =IFERROR((G6),"") -> 16.7 | H11: 19.1 | I11: 20.4 | J11: 19.6 | K11: 19.6 | L11: 21.1 | M11: 21.9 | N11: 22 | O11: 21.1 | P11: 19.9 | Q11: 20.4 | R11: 19.8
B13: Margin coverage level ($/cwt) | C13: 8 | D13: /cwt | F13: Average feed cost calculation:
F14: Cost for corn in $/cwt. | G14: =IFERROR((G8)*1.0728,"") -> 5.299632 | H14: 6.06132 | I14: 5.932584 | J14: 6.823008 | K14: 6.780096 | L14: 6.844464 | M14: 6.790824 | N14: 7.380864 | O14: 6.844464 | P14: 6.147144 | Q14: 6.254424 | R14: 6.286608
B15: Production coverage level (%) | C15: 95 | D15: % | F15: Cost for soymeal in $/cwt. | G15: =IFERROR((G9)*0.00735,"") -> 2.708769 | H15: 2.6356365 | I15: 2.5389105 | J15: 2.4686445 | K15: 2.515905 | L15: 2.5537575 | M15: 2.546922 | N15: 2.56956 | O15: 2.471952 | P15: 2.2156575 | Q15: 2.14778025 | R15: 2.07016425
F16: Cost for alfalfa in $/cwt. | G16: =IFERROR((G10)*0.0137,"") -> 1.6577 | H16: 1.7673 | I16: 1.9454 | J16: 2.2057 | K16: 2.6167 | L16: 2.5345 | M16: 2.7126 | N16: 2.6852 | O16: 2.7126 | P16: 2.7948 | Q16: 2.6441 | R16: 2.6715
B17: Locked coverage discount | C17: 0 | D17: %
B18: Premiums for milk marketings up to 5,000,000 lbs. | C18: =VLOOKUP(C$13,C26:D37,2)*((100-C17)/100) -> 0.1 | D18: /cwt | F18: Average feed cost in $/cwt. | G18: =IFERROR(SUM(G14:G16),"") -> 9.666101 | H18: 10.4642565 | I18: 10.4168945 | J18: 11.4973525 | K18: 11.912701 | L18: 11.9327215 | M18: 12.050346 | N18: 12.635624 | O18: 12.029016 | P18: 11.1576015 | Q18: 11.04630425 | R18: 11.02827225
B19: Premiums for milk marketings over 5,000,000 lbs. | C19: =VLOOKUP(C$13,C40:D48,2)*((100-C17)/100) -> 1.813 | D19: /cwt
F20: Actual Dairy Production Margin | G20: =IFERROR(G11-G18,"") -> 7.033899 | H20: 8.6357435 | I20: 9.9831055 | J20: 8.1026475 | K20: 7.687299 | L20: 9.1672785 | M20: 9.849654 | N20: 9.364376 | O20: 9.070984 | P20: 8.7423985 | Q20: 9.35369575 | R20: 8.77172775
B21: Annual Premium cost to participate in MPP | C21: =IF(C10<5000001,C11*(C15/100)*C18,50000*(C15/100)*C18+(C11-50000)*(C15/100)*C19) -> 108091
B22: Total annual cost to participate in MPP | C22: =C3+C21 -> 108191
B25: For milk marketings up to 5,000,000 lbs. | C25: Coverage level | D25: Premium ($/cwt)
C26: 4 | D26: 0
C27: 4.5 | D27: 0.0025 | F27: Dairy Margin Coverage Payment Calculation
C28: 5 | D28: 0.005
C29: 5.5 | D29: 0.03 | F29: Margin coverage level ($/cwt) | G29: =$C$13 -> 8 | H29: 8 | I29: 8 | J29: 8 | K29: 8 | L29: 8 | M29: 8 | N29: 8 | O29: 8 | P29: 8 | Q29: 8 | R29: 8
C30: 6 | D30: 0.05 | F30: Production coverage level (%) | G30: =$C$15 -> 95 | H30: 95 | I30: 95 | J30: 95 | K30: 95 | L30: 95 | M30: 95 | N30: 95 | O30: 95 | P30: 95 | Q30: 95 | R30: 95
C31: 6.5 | D31: 0.07
C32: 7 | D32: 0.08 | F32: Actual margin - Threshold margin | G32: =IF(G20=0,0,IFERROR(G29-G20,"")) -> 0.966101 | H32: =IF(H20=0,0,IFERROR(H29-H20,"")) -> -0.6357435 | I32: -1.9831055 | J32: -0.1026475 | K32: 0.312701 | L32: -1.1672785 | M32: -1.849654 | N32: -1.364376 | O32: -1.070984 | P32: -0.7423985 | Q32: -1.35369575 | R32: -0.77172775
C33: 7.5 | D33: 0.09
C34: 8 | D34: 0.1 | F34: Dairy Margin Coverage Payment | G34: =IFERROR(IF(G32>0,G32*(G30/100)*$C$11/6,0),0) -> 16826.25908 | H34: =IFERROR(IF(H32>0,H32*(H30/100)*$C$11/6,0),0) -> 0 | I34: 0 | J34: 0 | K34: 5446.209083 | L34: 0 | M34: 0 | N34: 0 | O34: 0 | P34: 0 | Q34: 0 | R34: 0
C35: 8.5 | D35: 0.105
C36: 9 | D36: 0.11
C37: 9.5 | D37: 0.15
F38: ****Note that the DMC payment value below is the annual payment.****
B39: For milk marketings over 5,000,000 lbs. | C39: Coverage level | D39: Premium ($/cwt) | F39: Annual Dairy Margin Coverage Payment
C40: 4 | D40: 0
C41: 4.5 | D41: 0.0025 | F41: January | G41: =IFERROR(G$34,0) -> 16826.25908
C42: 5 | D42: 0.005 | F42: February | G42: =IFERROR(H$34,0) -> 0
C43: 5.5 | D43: 0.1 | F43: March | G43: =IFERROR(I$34,0) -> 0
C44: 6 | D44: 0.31 | F44: April | G44: =IFERROR(J$34,0) -> 0
C45: 6.5 | D45: 0.65 | F45: May | G45: =IFERROR(K$34,0) -> 5446.209083
C46: 7 | D46: 1.107 | F46: June | G46: =IFERROR(L$34,0) -> 0
A47: =TODAY() -> 2022-06-06 | C47: 7.5 | D47: 1.413 | F47: July | G47: =IFERROR(M$34,0) -> 0
C48: 8 | D48: 1.813 | F48: August | G48: =IFERROR(N$34,0) -> 0
F49: September | G49: =IFERROR(O$34,0) -> 0
F50: October | G50: =IFERROR(P$34,0) -> 0
F51: November | G51: =IFERROR(Q$34,0) -> 0
F52: December | G52: =IFERROR(R$34,0) -> 0
F54: Total Annual Margin Protection Payment | G54: =SUM(G41:G52) -> 22272.46817
F56: Cost to participate | G56: =C22 -> 108191
F57: Annual return to participating in MPP | G57: =G54-G56 -> -85918.53183

Sheet 2010 (hidden)
B1: ****Users may type over the default values in the blue boxes****
B2: Dairy Margin Protection Program
B3: Participation fee | C3: 100 | F3: Actual Dairy Production Margin Calculation
F4: 2009 | G4: January | H4: February | I4: March | J4: April | K4: May | L4: June | M4: July | N4: August | O4: September | P4: October | Q4: November | R4: December | T4: See comment
B5: Production history for the past three years: | F5: See comment | T5: http://usda.mannlib.cornell.edu/MannUsda/viewDocumentInfo.do;jsessionid=F154BA78C7C50C021C8CA924EDB72FD5?documentID=1002
B6: 2006 | C6: 10000000 | D6: lbs | F6: All milk price ($/cwt) | G6: 16.1 | H6: 15.9 | I6: 14.8 | J6: 14.6 | K6: 15.1 | L6: 15.5 | M6: 16 | N6: 16.7 | O6: 17.7 | P6: 18.5 | Q6: 17.9 | R6: 16.7
B7: 2007 | C7: 10500000 | D7: lbs | F7: Average feed cost calculation: | T7: http://usda.mannlib.cornell.edu/MannUsda/viewDocumentInfo.do;jsessionid=F154BA78C7C50C021C8CA924EDB72FD5?documentID=1002
B8: 2008 | C8: 11000000 | D8: lbs | F8: Monthly national avg price received for corn ($/bu) | G8: 3.66 | H8: 3.55 | I8: 3.55 | J8: 3.41 | K8: 3.48 | L8: 3.41 | M8: 3.49 | N8: 3.65 | O8: 4.08 | P8: 4.32 | Q8: 4.55 | R8: 4.82 | T8: http://www.ams.usda.gov/mnreports/gx_gr117.txt
F9: Monthly avg price of central Ill. high protein soymeal ($/ton) | G9: 314.23 | H9: 295.79 | I9: 277.61 | J9: 291.21 | K9: 287.85 | L9: 305.78 | M9: 325.56 | N9: 331.76 | O9: 317.65 | P9: 321.92 | Q9: 341.78 | R9: 351.93 | T9: http://usda.mannlib.cornell.edu/MannUsda/viewDocumentInfo.do;jsessionid=F154BA78C7C50C021C8CA924EDB72FD5?documentID=1002
B10: Maximum of last three years' production | C10: =MAX(C6:C8) -> 11000000 | D10: lbs | F10: Monthly national avg price received for alfalfa ($/ton) | G10: 113 | H10: 111 | I10: 111 | J10: 113 | K10: 121 | L10: 119 | M10: 117 | N10: 116 | O10: 117 | P10: 118 | Q10: 117 | R10: 121
C11: =C10/100 -> 110000 | D11: cwt | F11: All milk price | G11: =IFERROR((G6),"") -> 16.1 | H11: 15.9 | I11: 14.8 | J11: 14.6 | K11: 15.1 | L11: 15.5 | M11: 16 | N11: 16.7 | O11: 17.7 | P11: 18.5 | Q11: 17.9 | R11: 16.7
B13: Margin coverage level ($/cwt) | C13: 8 | D13: /cwt | F13: Average feed cost calculation:
F14: Cost for corn in $/cwt. | G14: =IFERROR((G8)*1.0728,"") -> 3.926448 | H14: 3.80844 | I14: 3.80844 | J14: 3.658248 | K14: 3.733344 | L14: 3.658248 | M14: 3.744072 | N14: 3.91572 | O14: 4.377024 | P14: 4.634496 | Q14: 4.88124 | R14: 5.170896
B15: Production coverage level (%) | C15: 95 | D15: % | F15: Cost for soymeal in $/cwt. | G15: =IFERROR((G9)*0.00735,"") -> 2.3095905 | H15: 2.1740565 | I15: 2.0404335 | J15: 2.1403935 | K15: 2.1156975 | L15: 2.247483 | M15: 2.392866 | N15: 2.438436 | O15: 2.3347275 | P15: 2.366112 | Q15: 2.512083 | R15: 2.5866855
F16: Cost for alfalfa in $/cwt. | G16: =IFERROR((G10)*0.0137,"") -> 1.5481 | H16: 1.5207 | I16: 1.5207 | J16: 1.5481 | K16: 1.6577 | L16: 1.6303 | M16: 1.6029 | N16: 1.5892 | O16: 1.6029 | P16: 1.6166 | Q16: 1.6029 | R16: 1.6577
B17: Locked coverage discount | C17: 0 | D17: %
B18: Premiums for milk marketings up to 5,000,000 lbs. | C18: =VLOOKUP(C$13,C26:D37,2)*((100-C17)/100) -> 0.1 | D18: /cwt | F18: Average feed cost in $/cwt. | G18: =IFERROR(SUM(G14:G16),"") -> 7.7841385 | H18: 7.5031965 | I18: 7.3695735 | J18: 7.3467415 | K18: 7.5067415 | L18: 7.536031 | M18: 7.739838 | N18: 7.943356 | O18: 8.3146515 | P18: 8.617208 | Q18: 8.996223 | R18: 9.4152815
B19: Premiums for milk marketings over 5,000,000 lbs. | C19: =VLOOKUP(C$13,C40:D48,2)*((100-C17)/100) -> 1.813 | D19: /cwt
F20: Actual Dairy Production Margin | G20: =IFERROR(G11-G18,"") -> 8.3158615 | H20: 8.3968035 | I20: 7.4304265 | J20: 7.2532585 | K20: 7.5932585 | L20: 7.963969 | M20: 8.260162 | N20: 8.756644 | O20: 9.3853485 | P20: 9.882792 | Q20: 8.903777 | R20: 7.2847185
B21: Annual Premium cost to participate in MPP | C21: =IF(C10<5000001,C11*(C15/100)*C18,50000*(C15/100)*C18+(C11-50000)*(C15/100)*C19) -> 108091
B22: Total annual cost to participate in MPP | C22: =C3+C21 -> 108191
B25: For milk marketings up to 5,000,000 lbs. | C25: Coverage level | D25: Premium ($/cwt)
C26: 4 | D26: 0
C27: 4.5 | D27: 0.0025 | F27: Dairy Margin Coverage Payment Calculation
C28: 5 | D28: 0.005
C29: 5.5 | D29: 0.03 | F29: Margin coverage level ($/cwt) | G29: =$C$13 -> 8 | H29: 8 | I29: 8 | J29: 8 | K29: 8 | L29: 8 | M29: 8 | N29: 8 | O29: 8 | P29: 8 | Q29: 8 | R29: 8
C30: 6 | D30: 0.05 | F30: Production coverage level (%) | G30: =$C$15 -> 95 | H30: 95 | I30: 95 | J30: 95 | K30: 95 | L30: 95 | M30: 95 | N30: 95 | O30: 95 | P30: 95 | Q30: 95 | R30: 95
C31: 6.5 | D31: 0.07
C32: 7 | D32: 0.08 | F32: Actual margin - Threshold margin | G32: =IF(G20=0,0,IFERROR(G29-G20,"")) -> -0.3158615 | H32: =IF(H20=0,0,IFERROR(H29-H20,"")) -> -0.3968035 | I32: 0.5695735 | J32: 0.7467415 | K32: 0.4067415 | L32: 0.036031 | M32: -0.260162 | N32: -0.756644 | O32: -1.3853485 | P32: -1.882792 | Q32: -0.903777 | R32: 0.7152815
C33: 7.5 | D33: 0.09
C34: 8 | D34: 0.1 | F34: Dairy Margin Coverage Payment | G34: =IFERROR(IF(G32>0,G32*(G30/100)*$C$11/6,0),0) -> 0 | H34: =IFERROR(IF(H32>0,H32*(H30/100)*$C$11/6,0),0) -> 0 | I34: 9920.071792 | J34: 13005.74779 | K34: 7084.081125 | L34: 627.5399167 | M34: 0 | N34: 0 | O34: 0 | P34: 0 | Q34: 0 | R34: 12457.81946
C35: 8.5 | D35: 0.105
C36: 9 | D36: 0.11
C37: 9.5 | D37: 0.15
F38: ****Note that the DMC payment value below is the annual payment.****
B39: For milk marketings over 5,000,000 lbs. | C39: Coverage level | D39: Premium ($/cwt) | F39: Annual Dairy Margin Coverage Payment
C40: 4 | D40: 0
C41: 4.5 | D41: 0.0025 | F41: January | G41: =IFERROR(G$34,0) -> 0
C42: 5 | D42: 0.005 | F42: February | G42: =IFERROR(H$34,0) -> 0
C43: 5.5 | D43: 0.1 | F43: March | G43: =IFERROR(I$34,0) -> 9920.071792
C44: 6 | D44: 0.31 | F44: April | G44: =IFERROR(J$34,0) -> 13005.74779
C45: 6.5 | D45: 0.65 | F45: May | G45: =IFERROR(K$34,0) -> 7084.081125
C46: 7 | D46: 1.107 | F46: June | G46: =IFERROR(L$34,0) -> 627.5399167
A47: =TODAY() -> 2022-06-06 | C47: 7.5 | D47: 1.413 | F47: July | G47: =IFERROR(M$34,0) -> 0
C48: 8 | D48: 1.813 | F48: August | G48: =IFERROR(N$34,0) -> 0
F49: September | G49: =IFERROR(O$34,0) -> 0
F50: October | G50: =IFERROR(P$34,0) -> 0
F51: November | G51: =IFERROR(Q$34,0) -> 0
F52: December | G52: =IFERROR(R$34,0) -> 12457.81946
F54: Total Annual Margin Protection Payment | G54: =SUM(G41:G52) -> 43095.26008
F56: Cost to participate | G56: =C22 -> 108191
F57: Annual return to participating in MPP | G57: =G54-G56 -> -65095.73992

Sheet 2009 (hidden)
B1: ****Users may type over the default values in the blue boxes****
B2: Dairy Margin Protection Program
B3: Participation fee | C3: 100 | F3: Actual Dairy Production Margin Calculation
F4: 2019 | G4: January | H4: February | I4: March | J4: April | K4: May | L4: June | M4: July | N4: August | O4: September | P4: October | Q4: November | R4: December | T4: See comment
B5: Production history for the past three years: | F5: See comment | T5: http://usda.mannlib.cornell.edu/MannUsda/viewDocumentInfo.do;jsessionid=F154BA78C7C50C021C8CA924EDB72FD5?documentID=1002
B6: 2016 | C6: 10000000 | D6: lbs | F6: All milk price ($/cwt) | G6: 13.3 | H6: 11.6 | I6: 11.8 | J6: 11.9 | K6: 11.6 | L6: 11.3 | M6: 11.3 | N6: 12 | O6: 12.9 | P6: 14.2 | Q6: 15.3 | R6: 16.5
B7: 2017 | C7: 10500000 | D7: lbs | F7: Average feed cost calculation: | T7: http://usda.mannlib.cornell.edu/MannUsda/viewDocumentInfo.do;jsessionid=F154BA78C7C50C021C8CA924EDB72FD5?documentID=1002
B8: 2018 | C8: 11000000 | D8: lbs | F8: Monthly national avg price received for corn ($/bu) | G8: 4.36 | H8: 3.87 | I8: 3.86 | J8: 3.85 | K8: 3.97 | L8: 4.03 | M8: 3.6 | N8: 3.33 | O8: 3.25 | P8: 3.61 | Q8: 3.65 | R8: 3.59 | T8: http://www.ams.usda.gov/mnreports/gx_gr117.txt
F9: Monthly avg price of central Ill. high protein soymeal ($/ton) | G9: 306.85 | H9: 297.42 | I9: 292.22 | J9: 324.27 | K9: 380.37 | L9: 418.47 | M9: 373.18 | N9: 405.27 | O9: 379.68 | P9: 325.69 | Q9: 328.18 | R9: 333.93 | T9: http://usda.mannlib.cornell.edu/MannUsda/viewDocumentInfo.do;jsessionid=F154BA78C7C50C021C8CA924EDB72FD5?documentID=1002
B10: Maximum of last three years' production | C10: =MAX(C6:C8) -> 11000000 | D10: lbs | F10: Monthly national avg price received for alfalfa ($/ton) | G10: 149 | H10: 143 | I10: 137 | J10: 133 | K10: 138 | L10: 128 | M10: 120 | N10: 111 | O10: 110 | P10: 109 | Q10: 110 | R10: 110
C11: =C10/100 -> 110000 | D11: cwt | F11: All milk price | G11: =IFERROR((G6),"") -> 13.3 | H11: 11.6 | I11: 11.8 | J11: 11.9 | K11: 11.6 | L11: 11.3 | M11: 11.3 | N11: 12 | O11: 12.9 | P11: 14.2 | Q11: 15.3 | R11: 16.5
B13: Margin coverage level ($/cwt) | C13: 8 | D13: /cwt | F13: Average feed cost calculation:
F14: Cost for corn in $/cwt. | G14: =IFERROR((G8)*1.0728,"") -> 4.677408 | H14: 4.151736 | I14: 4.141008 | J14: 4.13028 | K14: 4.259016 | L14: 4.323384 | M14: 3.86208 | N14: 3.572424 | O14: 3.4866 | P14: 3.872808 | Q14: 3.91572 | R14: 3.851352
B15: Production coverage level (%) | C15: 95 | D15: % | F15: Cost for soymeal in $/cwt. | G15: =IFERROR((G9)*0.00735,"") -> 2.2553475 | H15: 2.186037 | I15: 2.147817 | J15: 2.3833845 | K15: 2.7957195 | L15: 3.0757545 | M15: 2.742873 | N15: 2.9787345 | O15: 2.790648 | P15: 2.3938215 | Q15: 2.412123 | R15: 2.4543855
F16: Cost for alfalfa in $/cwt. | G16: =IFERROR((G10)*0.0137,"") -> 2.0413 | H16: 1.9591 | I16: 1.8769 | J16: 1.8221 | K16: 1.8906 | L16: 1.7536 | M16: 1.644 | N16: 1.5207 | O16: 1.507 | P16: 1.4933 | Q16: 1.507 | R16: 1.507
B17: Locked coverage discount | C17: 0 | D17: %
B18: Premiums for milk marketings up to 5,000,000 lbs. | C18: =VLOOKUP(C$13,C26:D37,2)*((100-C17)/100) -> 0.1 | D18: /cwt | F18: Average feed cost in $/cwt. | G18: =IFERROR(SUM(G14:G16),"") -> 8.9740555 | H18: 8.296873 | I18: 8.165725 | J18: 8.3357645 | K18: 8.9453355 | L18: 9.1527385 | M18: 8.248953 | N18: 8.0718585 | O18: 7.784248 | P18: 7.7599295 | Q18: 7.834843 | R18: 7.8127375
B19: Premiums for milk marketings over 5,000,000 lbs. | C19: =VLOOKUP(C$13,C40:D48,2)*((100-C17)/100) -> 1.813 | D19: /cwt
F20: Actual Dairy Production Margin | G20: =IFERROR(G11-G18,"") -> 4.3259445 | H20: 3.303127 | I20: 3.634275 | J20: 3.5642355 | K20: 2.6546645 | L20: 2.1472615 | M20: 3.051047 | N20: 3.9281415 | O20: 5.115752 | P20: 6.4400705 | Q20: 7.465157 | R20: 8.6872625
B21: Annual Premium cost to participate in MPP | C21: =IF(C10<5000001,C11*(C15/100)*C18,50000*(C15/100)*C18+(C11-50000)*(C15/100)*C19) -> 108091
B22: Total annual cost to participate in MPP | C22: =C3+C21 -> 108191
B25: For milk marketings up to 5,000,000 lbs. | C25: Coverage level | D25: Premium ($/cwt)
C26: 4 | D26: 0
C27: 4.5 | D27: 0.0025 | F27: Dairy Margin Coverage Payment Calculation
C28: 5 | D28: 0.005
C29: 5.5 | D29: 0.03 | F29: Margin coverage level ($/cwt) | G29: =$C$13 -> 8 | H29: 8 | I29: 8 | J29: 8 | K29: 8 | L29: 8 | M29: 8 | N29: 8 | O29: 8 | P29: 8 | Q29: 8 | R29: 8
C30: 6 | D30: 0.05 | F30: Production coverage level (%) | G30: =$C$15 -> 95 | H30: 95 | I30: 95 | J30: 95 | K30: 95 | L30: 95 | M30: 95 | N30: 95 | O30: 95 | P30: 95 | Q30: 95 | R30: 95
C31: 6.5 | D31: 0.07
C32: 7 | D32: 0.08 | F32: Actual margin - Threshold margin | G32: =IF(G20=0,0,IFERROR(G29-G20,"")) -> 3.6740555 | H32: =IF(H20=0,0,IFERROR(H29-H20,"")) -> 4.696873 | I32: 4.365725 | J32: 4.4357645 | K32: 5.3453355 | L32: 5.8527385 | M32: 4.948953 | N32: 4.0718585 | O32: 2.884248 | P32: 1.5599295 | Q32: 0.534843 | R32: -0.6872625
C33: 7.5 | D33: 0.09
C34: 8 | D34: 0.1 | F34: Dairy Margin Coverage Payment | G34: =IFERROR(IF(G32>0,G32*(G30/100)*$C$11/6,0),0) -> 63989.79996 | H34: =IFERROR(IF(H32>0,H32*(H30/100)*$C$11/6,0),0) -> 81803.87142 | I34: 76036.37708 | J34: 77256.23171 | K34: 93097.92662 | L34: 101935.1955 | M34: 86194.26475 | N34: 70918.20221 | O34: 50233.986 | P34: 27168.77213 | Q34: 9315.18225 | R34: 0
C35: 8.5 | D35: 0.105
C36: 9 | D36: 0.11
C37: 9.5 | D37: 0.15
F38: ****Note that the DMC payment value below is the annual payment.****
B39: For milk marketings over 5,000,000 lbs. | C39: Coverage level | D39: Premium ($/cwt) | F39: Annual Dairy Margin Coverage Payment
C40: 4 | D40: 0
C41: 4.5 | D41: 0.0025 | F41: January | G41: =IFERROR(G$34,0) -> 63989.79996
C42: 5 | D42: 0.005 | F42: February | G42: =IFERROR(H$34,0) -> 81803.87142
C43: 5.5 | D43: 0.1 | F43: March | G43: =IFERROR(I$34,0) -> 76036.37708
C44: 6 | D44: 0.31 | F44: April | G44: =IFERROR(J$34,0) -> 77256.23171
C45: 6.5 | D45: 0.65 | F45: May | G45: =IFERROR(K$34,0) -> 93097.92662
C46: 7 | D46: 1.107 | F46: June | G46: =IFERROR(L$34,0) -> 101935.1955
A47: =TODAY() -> 2022-06-06 | C47: 7.5 | D47: 1.413 | F47: July | G47: =IFERROR(M$34,0) -> 86194.26475
C48: 8 | D48: 1.813 | F48: August | G48: =IFERROR(N$34,0) -> 70918.20221
F49: September | G49: =IFERROR(O$34,0) -> 50233.986
F50: October | G50: =IFERROR(P$34,0) -> 27168.77213
F51: November | G51: =IFERROR(Q$34,0) -> 9315.18225
F52: December | G52: =IFERROR(R$34,0) -> 0
F54: Total Annual Margin Protection Payment | G54: =SUM(G41:G52) -> 737949.8097
F56: Cost to participate | G56: =C22 -> 108191
F57: Annual return to participating in MPP | G57: =G54-G56 -> 629758.8097
